Cogmind - Beta 16 X2 @@@ ROGUE MODE // 2025.10.18 @ 14:35:11 Player: C0-2MO Result: Escaped! Performance ------------- Evolutions (9) 4500 Regions Visited (30) 6000 Robots Destroyed (466) 2330 Value Destroyed (28971) 28971 Prototype IDs (202) 4040 Alien Tech Used (10) 2000 Bonus (44256) 44256 TOTAL SCORE: 92097 Bonus ------- Triggered High Security 500 High Alert Combat Kills 14861 Follower Combat Kills 2366 Network Hubs Disabled 600 Registered with UFD 300 Met Optimus in HQ 500 Met Zhirov 300 Built Enhanced Grunts 300 Met R17 at Cetus 500 Found Hidden Lab 3000 Scanned by Researcher 500 Met Sigix 2000 Destroyed Superfortress 15000 Met Optimus at Protoforge 1000 Win 3000 Friendly Fire -471 Cogmind --------- Core Integrity 892/1600 Matter 283/300 Energy 98/100 System Corruption 2% Temperature Cool (0) Movement Core (50) Location To Epsilon Eridani Parts ------- > --- POWER (3) -------- (None) > --- PROPULSION (8) --- (None) > --- UTILITY (11) ----- (None) > --- WEAPON (3) ------- (None) > --- INVENTORY (5) ---- Concept Phasing Heat Sink Concept NT7 Matterbank (297) Graphene Brace Concept Impact Drone Bay (6/6) Transdimensional Reconstructor Peak State ------------ > --- POWER ------------ Improved Quantum Reactor Hybrid Graviton Reactor Concept Zero-point Core > --- PROPULSION ------- Experimental Antigrav System Gravjet Array Gravjet Array Concept Combat Aerolev Unit Concept Combat Aerolev Unit Concept Gyrokinetic System > --- UTILITY ---------- Concept Phasing Heat Sink Concept Antigrav Storage Unit Experimental Optical Array Experimental Active Sensor Suite Experimental Core Analyzer Experimental Kinecellerator Concept Reaction Jets Concept Cloak Mesh Concept RG22 Armor Concept RG22 Armor > --- WEAPON ----------- Concept Helical Railcannon Concept Helical Railcannon Concept Deflector Sword > --- INVENTORY -------- Quantum Reactor Experimental Antimatter Reactor Hybrid Graviton Reactor Concept Gyrokinetic System Concept Gyrokinetic System Concept Phasing Heat Sink Concept Thermoelectric Network Concept NT7 Matterbank Concept Weapon Articulator Experimental Phase Shifter Concept Cloak Mesh Graphene Brace Graphene Brace Experimental Shock Absorption System Experimental EM Shield Concept Impact Drone Bay Transdimensional Reconstructor Transdimensional Reconstructor Compact HERF Cannon Warp Cannon Cooled Directed Potential Cannon [Rating: 302] Favorites ----------- Power Improved Quantum Reactor Engine Light Deuterium Engine Power Core Concept Zero-point Core Reactor Improved Quantum Reactor Propulsion Q-thruster Treads Light Treads Leg Enhanced Flexi-carbon Leg Wheel Wheel Hover Unit Gravjet Array Flight Unit Q-thruster Utility Advanced Hacking Suite Device Advanced Sensor Array Storage Large Storage Unit Processor Experimental Optical Array Hackware Advanced Hacking Suite Protection Medium Regenerative Plating Artifact Phase Redirector Weapon Vibroblade Energy Gun Warp Gun Energy Cannon Warp Cannon Ballistic Gun Improved Assault Rifle Ballistic Cannon Concept Helical Railcannon Launcher Fusion Bomb Launcher Special Weapon Guided Remote Datajack Impact Weapon Great Maul Slashing Weapon Vibroblade Piercing Weapon Heavy Pick Special Melee Weapon Improved Datajack Build | -11 -10 -10 -9 -8 -8 -8 -8 -6 -6 -6 -6 -6 -6 -6 -5 -5 -5 -5 -5 -5 -4 -4 -4 -4 -3 -3 -2 -2 -2 -1 ------- Run | Yrd Mat Min Mat Mat Sto Rec Scr Fac Was Fac Ext Cet Arc Hub Fac Was Fac Upp Upp Zhi Pro Fac Arm Lab Res Tes Res Qua Frg Acc Slots Evolved 18 | . . . 2 2 . . . 4 . . . . . . 2 . . . . . . 2 . . 2 . 2 . . 2 Power 2 | . . . . . . . . . . . . . . . . . . . . . . . . . 1 . . . . 1 Propulsion 6 | . . . . 2 . . . 2 . . . . . . 1 . . . . . . 1 . . . . . . . . Utility 9 | . . . 2 . . . . 2 . . . . . . 1 . . . . . . 1 . . 1 . 2 . . . Weapon 1 | . . . . . . . . . . . . . . . . . . . . . . . . . . . . . . 1 Parts Attached 311 | 7 9 . 8 9 15 1 . 13 . 21 11 12 5 3 20 4 20 . . 4 . 11 1 4 21 7 2 23 61 19 Power 32 | 1 . . . 1 2 . . 1 . 3 . 1 . 1 2 . 2 . . . . 2 . . 3 . . 2 7 4 Engine 9 | 1 . . . 1 2 . . 1 . . . . . . 2 . 2 . . . . . . . . . . . . . Core 5 | . . . . . . . . . . 3 . . . . . . . . . . . . . . . . . . 2 . Reactor 18 | . . . . . . . . . . . . 1 . 1 . . . . . . . 2 . . 3 . . 2 5 4 Propulsion 87 | 2 4 . 2 3 6 . . 6 . 5 2 3 3 . 6 2 6 . . . . 3 . . 6 1 . 4 18 5 Treads 2 | 1 . . . . . . . . . . . . . . . . . . . . . . . . . . . 1 . . Leg 2 | . . . . . . . . . . . . . 1 . . . . . . . . . . . . . . 1 . . Wheel 1 | 1 . . . . . . . . . . . . . . . . . . . . . . . . . . . . . . Hover 20 | . . . . . . . . . . 1 . 3 2 . 1 . 1 . . . . . . . . . . . 7 5 Flight 62 | . 4 . 2 3 6 . . 6 . 4 2 . . . 5 2 5 . . . . 3 . . 6 1 . 2 11 . Utility 130 | 2 3 . 2 3 3 1 . 3 . 10 5 6 . 1 9 1 12 . . 4 . 4 1 1 11 2 1 14 27 4 Device 63 | 1 . . 1 2 . . . 2 . 4 3 1 . . 2 . 5 . . 2 . 1 . . 5 2 1 10 17 4 Storage 9 | 1 . . . . 1 1 . . . . . . . 1 . . 1 . . . . 1 1 . . . . 1 1 . Processor 22 | . 1 . 1 . . . . 1 . 4 1 . . . 1 . 3 . . . . 2 . . 2 . . 1 5 . Hackware 22 | . 1 . . . 2 . . . . 2 . 3 . . 6 . 3 . . 1 . . . . 3 . . . 1 . Protection 13 | . 1 . . 1 . . . . . . 1 2 . . . 1 . . . 1 . . . 1 1 . . 1 3 . Artifact 1 | . . . . . . . . . . . . . . . . . . . . . . . . . . . . 1 . . Weapon 62 | 2 2 . 4 2 4 . . 3 . 3 4 2 2 1 3 1 . . . . . 2 . 3 1 4 1 3 9 6 Energy Gun 5 | . . . . . . . . . . . . 1 . . . . . . . . . . . 1 . 2 . . 1 . Energy Cannon 10 | . . . . . 2 . . . . . . . 1 . . . . . . . . . . 1 . 1 . 1 2 2 Ballistic Gun 12 | 2 1 . 4 . 1 . . . . . . . . 1 1 . . . . . . . . . . . . 1 1 . Ballistic Cannon 6 | . . . . . . . . . . . . 1 . . . . . . . . . . . . . . . 1 2 2 Launcher 10 | . 1 . . . 1 . . 1 . . 1 . . . . 1 . . . . . . . . . 1 1 . 1 2 Special Weapon 4 | . . . . . . . . . . . 2 . . . . . . . . . . . . 1 . . . . 1 . Impact Weapon 1 | . . . . 1 . . . . . . . . . . . . . . . . . . . . . . . . . . Slashing Weapon 6 | . . . . 1 . . . . . 1 . . . . 2 . . . . . . . . . 1 . . . 1 . Piercing Weapon 4 | . . . . . . . . 1 . 1 1 . . . . . . . . . . 1 . . . . . . . . Special Melee Weapon 4 | . . . . . . . . 1 . 1 . . 1 . . . . . . . . 1 . . . . . . . . Unidentified Prototypes 70 | . . . 1 . 7 1 . 2 . 2 . 4 2 . . . . . . 4 . . . 5 7 7 2 12 12 2 Parts Lost 89 | . 2 . . 4 . . . 3 . 11 7 1 . 7 11 3 1 . . . . 4 . . 1 . . . 10 24 Power 10 | . . . . . . . . 2 . 1 . . . 1 1 . . . . . . 1 . . . . . . 1 3 Propulsion 39 | . 1 . . 3 . . . 1 . 6 4 . . 2 4 2 . . . . . 2 . . 1 . . . 4 9 Utility 27 | . 1 . . 1 . . . . . 3 1 1 . 2 4 1 1 . . . . 1 . . . . . . 4 7 Weapon 13 | . . . . . . . . . . 1 2 . . 2 2 . . . . . . . . . . . . . 1 5 Highest Loss Streak 11 | . 2 . . 4 . . . 2 . 8 4 1 . 3 11 3 1 . . . . 2 . . 1 . . . 4 4 To Critical Strikes . | . . . . . . . . . . . . . . . . . . . . . . . . . . . . . . . Average Backups 11 | 2 4 5 4 4 5 9 9 7 10 9 9 7 9 11 5 4 4 7 7 8 10 9 9 10 12 13 12 13 16 19 Power . | . 1 1 1 . . . . . 1 . 1 . 1 . 1 1 1 1 1 1 1 1 1 1 1 1 1 . 1 2 Propulsion 1 | 1 1 1 2 . . 2 3 1 2 . . . 1 2 . . . 2 2 2 2 1 1 1 1 3 3 1 1 1 Utility 5 | . . 2 . . 2 3 2 1 3 3 4 3 4 5 3 3 2 3 3 3 5 4 5 6 5 5 3 5 7 10 Weapon 2 | . 1 1 1 2 3 3 3 3 2 2 2 2 2 2 . . . 1 1 1 1 1 1 1 2 3 3 4 3 2 Tool/Special . | . . . . . . . . . . . . . . . . . . . . . . . . . . . . . . . Unused Backups 27 | . 2 . 3 . . . 1 . . 2 1 . . . . . 1 . . . . 1 . . 2 . . 4 4 6 Power 6 | . . . . . . . . . . 2 . . . . . . . . . . . 1 . . . . . 2 . 1 Propulsion 5 | . 2 . 2 . . . . . . . . . . . . . . . . . . . . . . . . . 1 . Utility 12 | . . . 1 . . . 1 . . . . . . . . . 1 . . . . . . . 2 . . 1 3 3 Weapon . | . . . . . . . . . . . . . . . . . . . . . . . . . . . . . . . Tool/Special 4 | . . . . . . . . . . . 1 . . . . . . . . . . . . . . . . 1 . 2 Average Slot Usage (%) 85 | . 84 85 87 88 97 90 90 94 100 94 99 82 85 75 51 62 90 88 88 88 88 80 83 77 80 84 82 85 85 81 Engine 1 | . 1 . . 2 8 9 9 5 6 1 . . . . 1 5 5 5 5 5 5 . . . . . . . . . Core 1 | . . . . . . . . . . 4 5 . . . . . . . . . . . . . . . . . 2 3 Reactor 2 | . . . . . . . . . . . . 4 6 5 . . . . . . . 3 5 5 8 9 8 4 2 6 Hover 4 | . . . . . . . . . . . . 11 23 19 4 5 1 . . . . . . . . . . . 10 22 Flight 23 | . 24 28 22 34 36 36 36 39 40 34 38 13 2 . 11 17 36 35 35 35 35 26 26 26 22 23 21 25 15 . Device 11 | . 10 . 10 5 7 . . 5 6 3 5 . . . 4 6 12 11 11 10 7 14 14 9 9 9 8 13 16 20 Storage 4 | . 1 . . . 1 9 9 6 6 6 6 4 6 6 . . . 5 5 5 5 5 5 5 4 4 4 4 4 4 Processor 10 | . 10 . 11 9 4 . . 3 6 9 6 6 6 6 10 11 7 5 5 5 5 7 10 10 11 14 13 15 14 8 Hackware 10 | . 2 14 11 9 17 27 27 20 20 14 13 13 13 11 8 5 15 17 17 17 17 12 10 10 12 9 8 8 5 . Protection 4 | . 2 14 11 9 5 . . 2 . 3 6 11 13 13 . 2 2 . . . 3 . . 1 3 4 12 4 4 5 Ballistic Gun 1 | . 26 28 22 9 7 . . 1 . . . . . 2 . . . . . . . . . . . . . . . . Slashing Weapon 2 | . . . . 5 3 . . . . . . . . . 3 5 5 5 5 5 5 1 . . . 4 3 3 2 2 Piercing Weapon 1 | . . . . . . . . 1 6 5 6 4 6 4 . . . . . . . 3 5 5 4 . . . . . Peak Build Rating 302 | 7 8 8 16 22 35 37 32 57 57 68 70 105 99 99 87 57 76 71 71 83 88 111 109 119 157 160 160 187 280 302 Average Rating 132 | 5 6 8 15 20 27 31 31 46 57 59 64 88 96 89 45 42 67 71 71 74 80 99 108 108 135 150 151 172 216 273 On Entrance 74 | . 7 8 8 16 22 32 32 32 57 57 68 43 95 99 49 37 45 71 71 71 77 77 109 107 116 146 142 150 176 277 Avg Prop Armor Cover (%) 6 | 12 9 . . 4 5 . . 4 4 5 6 1 . . 13 5 8 7 7 7 7 3 . . . . . 14 10 . Naked Turns . | . . . . . . . . . . . . . . . . . . . . . . . . . . . . . . . Heaviest Build 131 | 13 13 5 8 13 19 19 19 24 22 27 30 51 48 54 11 23 24 24 24 24 25 33 43 49 61 65 68 63 117 131 Greatest Support 128 | 10 10 8 8 20 20 20 20 26 33 35 33 68 70 70 24 40 43 31 31 31 31 60 59 59 82 65 85 65 128 128 Greatest Overweight (x) 20 | 1 1 . . . . . . . . 1 . 1 13 . . . . . . . . . . . 1 . 1 20 2 1 Average Overweight (x) . | . . . . . . . . . . . . . . . . . . . . . . . . . . . . . . . Largest Inventory Capacity 25 | 8 8 5 5 5 10 10 10 10 10 10 10 10 10 15 15 5 10 10 10 10 10 10 15 15 15 15 15 15 25 25 Average Capacity 13 | 7 5 5 5 5 6 9 10 10 10 10 10 8 10 14 5 5 5 10 10 10 10 10 13 15 15 15 15 15 18 25 Most Carried 25 | 4 5 5 5 5 10 10 10 10 10 10 10 9 10 12 11 5 7 7 7 10 10 10 10 15 15 15 15 15 25 25 Average Carried 12 | 3 4 5 4 4 5 9 9 7 10 9 9 7 9 11 4 4 4 7 7 8 9 9 10 11 14 14 12 14 17 20 Final Capacity 25 | 8 5 5 5 5 10 10 10 10 10 10 10 10 10 15 5 5 10 10 10 10 10 10 15 15 15 15 15 15 25 5 Final Carried 25 | 4 5 5 5 4 10 10 10 10 10 9 10 9 10 12 5 5 7 7 7 10 10 10 10 14 14 15 13 15 25 5 Class Distribution -------------------- 28% | Hacker-Scout 11% | Hacker-Ninja 10% | Hacker-Sprinter 9% | Commander-Sprinter 7% | Hacker-Assassin 7% | Scavenger-Mutant 6% | Scout 5% | Ninja 5% | Scavenger-Sprinter 3% | Scavenger-Ninja Dominant Class ---------------- Mutant | -10/Materials Mutant | -10/Mines Scavenger-Mutant | -9/Materials Scavenger-Sprinter | -8/Materials Hacker-Sprinter | -8/Storage Commander-Sprinter | -8/Recycling Commander-Sprinter | -8/Scraptown Commander-Sprinter | -6/Factory Hacker-Sprinter | -6/Waste Hacker-Sprinter | -6/Factory Commander-Sprinter | -6/Extension Scavenger-Mutant | -6/Cetus Scavenger-Mutant | -6/Archives Scavenger-Mutant | -6/Hub_04(d) Scout | -5/Factory Sprinter | -5/Waste Hacker-Ninja | -5/Factory Hacker-Scout | -5/Upper Caves Hacker-Scout | -5/Upper Caves Hacker-Scout | -5/Zhirov Hacker-Sprinter | -4/Proximity Caves Hacker-Ninja | -4/Factory Hacker-Ninja | -4/Armory Hacker-Scout | -4/Lab Hacker-Scout | -3/Research Hacker-Scout | -3/Testing Hacker-Scout | -2/Research Hacker-Scout | -2/Quarantine Hacker-Scout | -2/Protoforge Ninja | -1/Access Resources | -11 -10 -10 -9 -8 -8 -8 -8 -6 -6 -6 -6 -6 -6 -6 -5 -5 -5 -5 -5 -5 -4 -4 -4 -4 -3 -3 -2 -2 -2 -1 ----------- Run | Yrd Mat Min Mat Mat Sto Rec Scr Fac Was Fac Ext Cet Arc Hub Fac Was Fac Upp Upp Zhi Pro Fac Arm Lab Res Tes Res Qua Frg Acc Matter Collected 13377 | 348 400 . 282 200 347 30 . 305 . 256 305 351 98 83 189 161 240 . 115 86 10 286 . . 275 130 107 370 4863 3540 Remotely . | . . . . . . . . . . . . . . . . . . . . . . . . . . . . . . . Salvage Created 24419 | 153 511 . 282 293 623 90 . 488 . 146 236 224 212 533 208 14 231 . . 171 . 78 . . 422 167 695 3490 8822 6330 Parts 1128 | 7 24 . 27 17 24 4 . 21 . 11 9 7 14 31 11 1 20 . . 3 . 5 . . 22 9 26 166 431 238 Haulers Intercepted 15 | . 2 . . . 4 . . . . . . . . . . . . . . . . . . . 3 . 2 . 2 2 Recyclers Shooed 6 | . . . . . . . . . . . 2 . . . . . 2 . . . . . . . . . . 1 . 1 Parts Field Recycled . | . . . . . . . . . . . . . . . . . . . . . . . . . . . . . . . Retrieved Matter . | . . . . . . . . . . . . . . . . . . . . . . . . . . . . . . . Parts Self-Destructed 1 | . . . . . . . . . . . . . . . . . . . . 1 . . . . . . . . . . Prevented . | . . . . . . . . . . . . . . . . . . . . . . . . . . . . . . . Parts Restored 15 | . . . . . . . . . . . . . . . . . . . . . . . . . . . . . 15 . Faulty 15 | . . . . . . . . . . . . . . . . . . . . . . . . . . . . . 15 . Kills | -11 -10 -10 -9 -8 -8 -8 -8 -6 -6 -6 -6 -6 -6 -6 -5 -5 -5 -5 -5 -5 -4 -4 -4 -4 -3 -3 -2 -2 -2 -1 ------- Run | Yrd Mat Min Mat Mat Sto Rec Scr Fac Was Fac Ext Cet Arc Hub Fac Was Fac Upp Upp Zhi Pro Fac Arm Lab Res Tes Res Qua Frg Acc Combat Hostiles Destroyed 325 | . 13 . 12 5 3 . . 8 . 1 4 3 . 5 . . 5 . . . . . . . . . 4 34 136 92 Melee 6 | . . . . . 1 . . . . . 1 . . . . . . . . . . . . . . . . . 3 1 Guns 73 | . 5 . 12 2 1 . . 1 . . . . . 1 . . . . . . . . . . . . 4 28 19 . Cannons 130 | . . . . . . . . . . . . 3 . . . . . . . . . . . . . . . 2 73 52 AOE 86 | . 8 . . 3 . . . 5 . 1 3 . . 3 . . 5 . . . . . . . . . . . 28 30 Classes Destroyed 30 | 2 7 . 1 1 . . . 2 . . . . . 2 . . . . . . . . . . . . 1 4 9 1 Worker 22 | . 1 . . . . . . 1 . . . . . 10 2 . 2 . . . . . . . . . 2 . . 4 Builder 21 | . . . . 2 1 . . 2 . . . . . 7 1 . 2 . . . . . . . . . . . 1 5 Tunneler 3 | 3 . . . . . . . . . . . . . . . . . . . . . . . . . . . . . . Hauler 15 | . 2 . . . 4 . . . . . . . . . . . . . . . . . . . 3 . 2 . 2 2 Recycler 14 | 1 . . . 1 3 1 . 1 . . 1 . . 1 1 . 1 . . . . . . . . . . 1 . 2 Carrier 3 | . . . . . . . . . . . . . . . . . . . . . . . . . . . . . . 3 Mechanic 19 | . 1 . . . 1 . . . . . . . . . . . 1 . . . . . . . . . . . 7 9 Operator 12 | . 1 . 1 1 1 . . . . 2 . . 3 . . . 1 . . . . . . . 2 . . . . . Drone 10 | . . . . . . . . . . . . . . . . . . . . . . . . . . . . . 10 . Turret 4 | . . . . . . . . . . . . . . . . . . . . . . . . . . . 4 . . . Watcher 26 | . 1 . 1 1 2 . . 2 . 2 1 2 . . . . 1 . . . . 2 . . 2 . 2 2 4 1 Swarmer 43 | . 3 . 10 2 1 . . 3 . 1 3 . . . . . 5 . . . . . . . . . . . 15 . Cutter 1 | . . . . . . . . . . . . . . 1 . . . . . . . . . . . . . . . . Saboteur 8 | . . . . . . . . . . . . . . 1 . . . . . . . . . . . . . . 3 4 Grunt 77 | . 10 . 1 2 1 . . 3 . . 1 . . 3 . . . . . . . . . . . . . 15 10 31 Brawler 11 | . . . . . . . . . . . . . . . . . . . . . . . . . . . . . 4 7 Duelist 13 | . . . . . . . . . . . . . . . . . . . . . . . . . . . . . 2 11 Protector 13 | . . . . . . . . . . . . . . . . . . . . . . . . . . . . 1 8 4 Researcher 5 | . . . . . . . . . . . . . . . . . . . . . . . . . . . . . 5 . Sentry 19 | . . . 1 1 1 . . . . . . . . . . . . . . . . . . . . . . . 14 2 Specialist 5 | . . . . . . . . . . . . . . . . . . . . . . . . . . . . 3 2 . Hunter 19 | . . . . . . . . 1 . . . . . . . . . . . . . . . . . . 2 . 8 8 Programmer 31 | . . . . . . . . 1 . . . . . . . . . . . . . . . . . . 2 . 14 14 Behemoth 2 | . . . . . . . . . . . . . . . . . . . . . . . . . . . . . 1 1 Cetus Guard 3 | . . . . . . . . . . . . 3 . . . . . . . . . . . . . . . . . . Quarantine Guard 10 | . . . . . . . . . . . . . . . . . . . . . . . . . . . . 10 . . Enhanced Grunt 1 | . . . . . . . . . . . . . 1 . . . . . . . . . . . . . . . . . Lightning 3 | . . . . . . . . . . . . . . . . . . . . . . . . . . . . 3 . . Hotshot 3 | . . . . . . . . . . . . . . . . . . . . . . . . . . . . . 3 . Decapitator 9 | . . . . . . . . . . . . . . . . . . . . . . . . . . . . . 9 . Immortal 4 | . . . . . . . . . . . . . . . . . . . . . . . . . . . . . 4 . Striker 16 | . . . . . . . . . . . . . . . . . . . . . . . . . . . . . 10 6 Executioner 17 | . . . . . . . . . . . . . . . . . . . . . . . . . . . . . 13 4 Alpha 7 5 | . . . . . . . . . . . . . . . . . . . . . . . . . . . . 1 4 . Fortress 1 | . . . . . . . . . . . . . . . . . . . . . . . . . . . . 1 . . V-Series 2 | . . . . . . . . . . . . . . . . . . . . . . . . . . . . . 2 . Scrapoid 1 | . . . . . . . . . . . . . . . . . . . . . . . . . . . . . 1 . Wasp 1 | . . . . . . . . . . . . . . . . 1 . . . . . . . . . . . . . . Best Kill Streak 44 | 2 9 . 8 4 4 1 . 4 . 1 3 2 2 15 2 . 8 . . . . 1 . . 2 . 8 4 30 44 Combat Bots Only 31 | . 8 . 8 4 1 . . 3 . 1 3 2 . 3 . . 5 . . . . . . . . . 4 4 26 31 Max Kills in Single Turn 13 | 1 2 . 1 1 1 1 . 3 . 1 2 1 1 13 1 1 4 . . . . 1 . . 1 . 1 1 4 6 Gunslinging . | . . . . . . . . . . . . . . . . . . . . . . . . . . . . . . . Exploded 5 | . 2 . . 1 . . . 3 . 1 2 . . 1 . . 3 . . . . . . . . . . . 4 5 Melee 1 | . . . . . 1 . . . . . 1 . . . . . . . . . . . . . . . . . 1 1 Uniques/NPCs Destroyed . | . . . . . . . . . . . . . . . . . . . . . . . . . . . . . . . Combat | -11 -10 -10 -9 -8 -8 -8 -8 -6 -6 -6 -6 -6 -6 -6 -5 -5 -5 -5 -5 -5 -4 -4 -4 -4 -3 -3 -2 -2 -2 -1 -------- Run | Yrd Mat Min Mat Mat Sto Rec Scr Fac Was Fac Ext Cet Arc Hub Fac Was Fac Upp Upp Zhi Pro Fac Arm Lab Res Tes Res Qua Frg Acc Hostile Shots Fired 1948 | . 42 . 59 71 13 6 . 104 . 154 60 12 . 102 74 . 27 . 3 . 2 23 . . 20 26 9 12 341 788 Missed 855 | . 12 . 23 27 7 4 . 52 . 76 28 6 . 32 28 . 10 . 2 . 2 13 . . 12 12 3 8 186 312 Intercepted 3 | . . . . . . . . . . . . . . . . . . . . . . . . . . . . . 3 . Deflected 13 | . . . . . . . . . . . . . . . . . . . . . . . . . . . . . 1 12 Hits 1093 | . 30 . 36 44 6 2 . 52 . 78 32 6 . 70 46 . 17 . 1 . . 10 . . 8 14 6 4 155 476 Melee 6 | . . . . . . . . . . . . . . 2 . . . . . . . . . . . . . . 3 1 Projectile 1087 | . 30 . 36 44 6 2 . 52 . 78 32 6 . 68 46 . 17 . 1 . . 10 . . 8 14 6 4 152 475 AOE 8 | . . . . . . . . . . . . . . 2 . . . . . . . 2 . . . . . . 2 2 Critical Strikes 44 | . . . . 2 . . . . . . 2 . . 10 6 . . . . . . . . . 1 . . 1 9 13 Actively Blocked 13 | . . . . . . . . . . . 1 . . . . . . . . . . . . . . . . . 6 6 Part Disruptions 3 | . . . . . . . . . . . . . . . . . . . . . . . . . . . . . 3 . Damage Taken 18478 | . 431 . 360 595 74 30 . 618 . 1120 579 149 . 1558 858 102 348 . 23 . 48 360 . . 158 278 144 119 4133 6393 Core 2906 | . 123 . 131 124 8 . . 104 . 429 121 . . 136 370 29 91 . . . 16 . . . 22 38 23 . 433 708 Absorbed by Shields 1543 | . . . . . . . . 110 . . 33 . . . . . . . . . . . . . . . . . 35 1365 Redirected to Shielding 550 | . . . 2 125 1 . . 84 . 39 98 . . . . . 84 . . . . . . . . . 50 . 67 . Ignored by Resistances 1530 | . . . . . . . . . . . . . . . . . . . . . . . . . . . . . 425 1105 Regen/Repaired (Parts) 3994 | . 66 . . 73 185 . . 87 . 232 . 11 . 52 176 20 167 . . . . 45 . . 65 73 84 190 625 1843 Core Remaining (%) 64 | 100 . 50 67 . . . 76 . . . . . . 7 . . . . . . 49 . . 100 . 95 . . 42 55 Volleys Fired 1217 | 13 49 . 31 15 3 . . 7 . 2 3 29 4 11 1 4 3 . . . 2 . . . . 9 32 264 545 190 Largest 2 | 2 2 . 2 2 1 . . 1 . 1 1 1 1 1 1 1 1 . . . 1 . . . . 1 1 1 2 2 Hottest 300 | 40 50 . 46 53 25 . . 36 . 36 43 48 48 43 30 52 52 . . . 52 . . . . 90 90 100 300 140 Shots Fired 1498 | 26 92 . 62 30 3 . . 7 . 2 3 29 4 11 1 4 3 . . . 2 . . . . 9 32 264 640 274 Gun 695 | 26 82 . 62 25 3 . . 2 . . . . . 7 1 . . . . . . . . . . 5 29 231 222 . Cannon 717 | . . . . . . . . . . . . 28 4 . . . . . . . . . . . . . . 27 393 265 Launcher 72 | . 10 . . 5 . . . 5 . 2 2 . . 4 . 4 3 . . . 2 . . . . . 3 . 23 9 Special 14 | . . . . . . . . . . . 1 1 . . . . . . . . . . . . . 4 . 6 2 . Kinetic 670 | 26 82 . 62 25 3 . . 2 . . . 28 4 7 1 . . . . . . . . . . . . . 257 173 Thermal 732 | . . . . . . . . . . . . . . . . . . . . . . . . . . 5 29 258 358 82 Explosive 72 | . 10 . . 5 . . . 5 . 2 2 . . 4 . 4 3 . . . 2 . . . . . 3 . 23 9 Electromagnetic 10 | . . . . . . . . . . . . . . . . . . . . . . . . . . . . . . 10 Robot Hit Streak 26 | 4 9 . 11 6 6 . . 4 . . 1 4 . 2 . 1 1 . . . . . . . . 6 11 19 26 17 Robot Miss Streak 7 | 4 7 . 2 2 2 . . 3 . 3 4 3 4 5 . 2 2 . . . . . . . . . . . 7 7 Penetration Max 2 | . . . . . . . . . . . . . . . . . . . . . . . . . . . . . 2 2 Secondary Targets . | . . . . . . . . . . . . . . . . . . . . . . . . . . . . . . . Shots Hit Robots 724 | 15 40 . 46 25 28 2 . 19 . 5 25 20 16 2 4 1 6 . . 5 . 12 . . 13 11 15 12 244 158 Core Hits 703 | 4 38 . 17 18 7 1 . 21 . 9 9 6 6 36 2 3 11 . . 1 . 2 . . 7 4 19 99 246 137 Critical Kills 91 | . 1 . . . . 1 . 1 . . . 4 1 . . . . . . . . . . . . . 3 20 39 21 Critical Parts Destroyed 88 | . . . . 1 6 . . 2 . . . 5 . . . . . . . . . . . . . 2 2 17 48 5 Critical Strikes 196 | . 1 . . 1 7 1 . 3 . . . 10 1 . . . . . . . . 1 . . 4 2 6 40 92 27 Meltdown 28 | . . . . . . . . . . . . . . . . . . . . . . . . . . . . 4 14 10 Destroy 149 | . 1 . . . . . . . . . . 10 1 . . . . . . . . . . . . 2 5 36 77 17 Smash 11 | . . . . 1 6 1 . 3 . . . . . . . . . . . . . . . . . . . . . . Sever 4 | . . . . . 1 . . . . . . . . . . . . . . . . 1 . . . . 1 . 1 . Impale 4 | . . . . . . . . . . . . . . . . . . . . . . . . . 4 . . . . . Melee Attacks 625 | . . . . 18 48 3 . 36 . 86 31 4 21 5 10 3 39 1 1 5 3 63 5 5 50 25 19 54 67 23 Impact 62 | . . . . 11 24 3 . 24 . . . . . . . . . . . . . . . . . . . . . . Slashing 322 | . . . . 7 24 . . . . 11 . . . . 10 3 39 1 1 5 3 22 . . 8 25 19 54 67 23 Piercing 220 | . . . . . . . . 11 . 74 20 4 19 5 . . . . . . . 35 5 5 42 . . . . . Sneak Attacks 68 | . . . . 3 10 1 . 5 . 1 13 . 9 . 4 . 4 . . . . 5 . . 4 . 1 . 6 2 Combat Hostiles 4 | . . . . . . . . 2 . . 2 . . . . . . . . . . . . . . . . . . . Follow-up Attacks . | . . . . . . . . . . . . . . . . . . . . . . . . . . . . . . . Damage Inflicted 89245 | 182 1357 . 724 1296 1548 204 . 1829 . 392 984 501 636 2884 361 592 1815 . . 403 . 399 . . 789 971 1476 7200 35239 27463 Guns 13308 | 182 486 . 724 254 17 . . 38 . . . . . 65 . . . . . . . . . . . 132 821 5606 4983 . Cannons 40898 | . . . . . . . . . . . . 393 10 . . . . . . . . . . . . . . 1011 22498 16986 Explosions 23615 | . 871 . . 608 . . . 960 . 115 267 . . 2819 . 592 1374 . . . . . . . . . . . 6147 9862 Melee 11366 | . . . . 434 1531 204 . 831 . 277 717 108 626 . 361 . 441 . . 403 . 399 . . 789 839 655 583 1611 557 Ramming 58 | . . . . . . . . . . . . . . . . . . . . . . . . . . . . . . 58 Kinetic 29625 | 182 486 . 724 254 17 . . 38 . . . 393 10 65 . . . . . . . . . . . . . . 17196 10260 Thermal 32456 | . . . . . . . . . . . . . . . . . . . . . . . . . . 132 821 6617 10285 14601 Explosive 13648 | . 673 . . 608 . . . 960 . 115 267 . . 1181 . 592 1374 . . . . . . . . . . . 6147 1731 Electromagnetic 2092 | . 198 . . . . . . . . . . . . 1638 . . . . . . . . . . . . . . . 256 Impact 2038 | . . . . 266 865 204 . 703 . . . . . . . . . . . . . . . . . . . . . . Slashing 6686 | . . . . 168 666 . . . . 49 . . . . 361 . 441 . . 403 . 254 . . 99 839 655 583 1611 557 Piercing 2642 | . . . . . . . . 128 . 228 717 108 626 . . . . . . . . 145 . . 690 . . . . . Highest Corruption 10 | . . . . . . . . . . 10 . . . . . . 5 5 5 5 5 . . . 1 . . . 6 2 Average Corruption 4 | . . . . . . . . . . 8 . . . . . . 4 5 5 5 5 . . . 1 . . . 2 1 Corruption Purged 11 | . . . . . . . . . . 10 . . . . . . . . . . . . . . 1 . . . . . Corruption Blocked 14 | . . . . . . . . . . 3 . . . . . . . . . . . . . . . . . 1 10 . Effects 70 | . . . . . . . . . . 31 . . . . . . 18 2 2 3 3 . . . . . . . 8 3 Message Errors 21 | . . . . . . . . . . 8 . . . . . . 4 1 1 1 1 . . . . . . . 4 1 Matter Fused 21 | . . . . . . . . . . 6 . . . . . . 7 . 1 1 2 . . . . . . . 2 2 Heat Flow Errors 7 | . . . . . . . . . . 4 . . . . . . 2 . . . . . . . . . . . 1 . Energy Discharges 10 | . . . . . . . . . . 4 . . . . . . 3 1 . 1 . . . . . . . . 1 . Parts Rejected 1 | . . . . . . . . . . 1 . . . . . . . . . . . . . . . . . . . . Data Loss (minor) 3 | . . . . . . . . . . 2 . . . . . . 1 . . . . . . . . . . . . . Data Loss (major) 3 | . . . . . . . . . . 2 . . . . . . 1 . . . . . . . . . . . . . Alerts 1 | . . . . . . . . . . 1 . . . . . . . . . . . . . . . . . . . . Misdirections 3 | . . . . . . . . . . 3 . . . . . . . . . . . . . . . . . . . . Overload Shots . | . . . . . . . . . . . . . . . . . . . . . . . . . . . . . . . Overflow Damage 7914 | . 69 . . 239 533 27 . 287 . 48 136 5 66 111 102 . 392 . . 197 . 55 . . 63 210 6 176 2534 2658 Projectiles 3461 | . . . . . . . . 17 . . . . . . . . . . . . . . . . . . . 31 1824 1589 Explosions 1673 | . 69 . . 7 . . . 33 . . 3 . . 111 . . 184 . . . . . . . . . . . 277 989 Melee 2780 | . . . . 232 533 27 . 237 . 48 133 5 66 . 102 . 208 . . 197 . 55 . . 63 210 6 145 433 80 Knockbacks 84 | . . . . 1 . . . 5 . . . . . . . . . . . . . . . . . . . . 30 48 Impact 6 | . . . . 1 . . . 4 . . . . . . . . . . . . . . . . . . . . . 1 Kinetic 66 | . . . . . . . . . . . . . . . . . . . . . . . . . . . . . 28 38 Secondary 12 | . . . . . . . . 1 . . . . . . . . . . . . . . . . . . . . 2 9 Self-Inflicted Damage 660 | . 108 . . 12 . . . . . . . . . 151 . . 8 . . . 49 . . . . . 10 . 187 135 Shots 12 | . 2 . . 1 . . . . . . . . . 2 . . 1 . . . 1 . . . . . 1 . 3 1 Rammed 2 | . . . . . . . . . . . . . . . . . . . . . . . . . . . . . . 2 Targets Rammed 2 | . . . . . . . . . . . . . . . . . . . . . . . . . . . . . . 2 Kicked . | . . . . . . . . . . . . . . . . . . . . . . . . . . . . . . . Crushed . | . . . . . . . . . . . . . . . . . . . . . . . . . . . . . . . Highest Temperature 261 | . 6 . . 36 12 . . 17 . 254 12 42 64 85 . . 259 . . . . 10 . 9 191 261 230 198 230 97 Average Temperature 40 | . 4 . . 16 9 . . 7 . 94 2 15 27 34 . . 49 . . . . 6 . 4 12 44 62 50 33 18 Received Heat Transfer 2002 | . 138 . 51 207 9 . . 137 . 291 69 18 . 369 27 . 54 . . . . 60 . . 18 . . 9 102 443 Siege Activations . | . . . . . . . . . . . . . . . . . . . . . . . . . . . . . . . Martial Activations . | . . . . . . . . . . . . . . . . . . . . . . . . . . . . . . . Shielding Activations . | . . . . . . . . . . . . . . . . . . . . . . . . . . . . . . . Robots Disrupted 1 | . 1 . . . . . . . . . . . . . . . . . . . . . . . . . . . . . Combat Hostiles 1 | . 1 . . . . . . . . . . . . . . . . . . . . . . . . . . . . . Robots Corrupted 11 | . . . . 1 3 . . 4 . . . . . 2 . . . . . . . . . . . . . . . 1 Combat Hostiles 5 | . . . . . 1 . . 2 . . . . . 1 . . . . . . . . . . . . . . . 1 Parts Fried 18 | . . . . 4 5 . . 3 . . . . . 6 . . . . . . . . . . . . . . . . Impact Corruptions 33 | . . . . 7 12 1 . 11 . . . . . . . . . . . . . . . . . . . . 1 1 Robots Melted 29 | . . . . . . . . . . . . . . . . . . . . . . . . . . . . 4 14 11 Combat Hostiles 25 | . . . . . . . . . . . . . . . . . . . . . . . . . . . . 4 13 8 Parts Melted 75 | . . . . . . . . . . . . . . . . . . . . . . . . . . . . 11 35 29 Heat Transferred 28561 | . . . . . . . . . . . . . . . . . . . . . . . . . . 185 1073 8768 10711 7824 Parts Sabotaged . | . . . . . . . . . . . . . . . . . . . . . . . . . . . . . . . Parts Stolen . | . . . . . . . . . . . . . . . . . . . . . . . . . . . . . . . Parts Stripped . | . . . . . . . . . . . . . . . . . . . . . . . . . . . . . . . Power Chain Reactions . | . . . . . . . . . . . . . . . . . . . . . . . . . . . . . . . Alert | -11 -10 -10 -9 -8 -8 -8 -8 -6 -6 -6 -6 -6 -6 -6 -5 -5 -5 -5 -5 -5 -4 -4 -4 -4 -3 -3 -2 -2 -2 -1 ------- Run | Yrd Mat Min Mat Mat Sto Rec Scr Fac Was Fac Ext Cet Arc Hub Fac Was Fac Upp Upp Zhi Pro Fac Arm Lab Res Tes Res Qua Frg Acc Maximum Alert Level 5 | . 2 . 1 1 3 1 . . . 3 1 . 1 3 2 1 1 . . . . . . . . . 1 2 5 5 Low Security (%) 41 | 100 33 100 40 . 19 . . 100 100 31 66 100 67 35 . 94 70 . . . . 100 100 . 100 100 85 34 14 . Level 1 16 | . 53 . 59 99 20 100 . . . 11 33 . 32 32 9 5 29 . . . . . . . . . 14 13 4 . Level 2 15 | . 12 . . . 29 . . . . 37 . . . 6 90 . . . . . . . . . . . . 51 8 . Level 3 6 | . . . . . 30 . . . . 19 . . . 26 . . . . . . . . . . . . . . 17 . Level 4 2 | . . . . . . . . . . . . . . . . . . . . . . . . . . . . . 8 . Level 5 12 | . . . . . . . . . . . . . . . . . . . . . . . . . . . . . 47 18 High Security 5 | . . . . . . . . . . . . . . . . . . . . . . . . . . . . . . 81 Max Security . | . . . . . . . . . . . . . . . . . . . . . . . . . . . . . . . Peak Influence 6548 | 10 418 145 295 390 769 338 . 195 54 768 345 156 231 959 660 208 392 . . . . 66 37 . 144 116 240 608 4037 6548 Initial 2153 | . . 145 52 85 118 230 . . 54 37 183 105 49 47 455 188 95 . . . . . . . . 2 65 . 272 2153 Average 827 | 1 263 142 196 317 473 286 . 124 54 412 165 72 178 383 492 167 160 . . . . 17 13 . 56 42 105 323 1604 4218 Influence Increases 21850 | 20 685 . 459 655 1004 205 . 779 . 1510 739 264 218 1112 464 88 1005 . . 5 . 323 63 . 442 451 304 1427 4918 4710 Destroy 0b10 Robot/C 7640 | . 260 . 240 100 420 20 . 260 . 140 340 160 80 260 . . 240 . . . . . . . . . 80 680 2540 1820 Destroy 0b10 Robot/NC 810 | 20 35 . 10 25 65 5 . 30 . 20 10 10 15 90 20 . 40 . . 5 . 10 . . 35 15 30 35 150 135 Destroy Leader 1376 | . 48 . 52 12 132 . . 64 . 44 52 . . 50 . . 52 . . . . 4 . . 10 . 28 154 348 326 Allied During Kill 964 | . . . . . 309 6 . 98 . 32 68 87 91 214 . . 59 . . . . . . . . . . . . . Successful Hack 986 | . 33 . 19 16 22 23 . 8 . 121 39 . . . 104 . 146 . . . . 108 23 . 78 110 34 69 33 . Select Force Hacks 510 | . 30 . 30 30 . 150 . 30 . 50 . . . 100 . . . . . . . . . . . . . 90 . . Disable Machine 1680 | . 150 . . 30 15 . . 60 . 15 15 . 30 210 30 . 135 . . . . . . . 15 90 . 105 645 135 Anti-Garrison Action 350 | . . . . 200 . . . . . . . . . . . . . . . . . . . . . . . . . 150 Destroy Structure 2879 | . 54 . 3 17 11 1 . 34 . 83 20 7 2 188 10 88 228 . . . . 96 10 . 64 26 87 129 527 1194 Partial Spotted 690 | . . . 15 60 15 . . 60 . 105 30 . . . 30 . 75 . . . . 45 30 . 60 . 45 105 15 . Lose Combat Pursuer 3765 | . 75 . 90 165 15 . . 135 . 900 165 . . . 270 . 30 . . . . 60 . . 180 210 . 60 660 750 Active Sensor Use 200 | . . . . . . . . . . . . . . . . . . . . . . . . . . . . . . 200 Influence Decreases 15357 | 20 310 240 390 579 692 568 229 623 102 1189 925 329 205 320 854 491 1001 82 52 11 . 323 32 31 437 340 420 942 1813 1807 Entered New Map 4416 | . . 230 83 119 162 362 229 . 102 17 192 84 75 90 474 351 41 52 12 6 . . . 31 . 3 51 . 213 1437 Time Decay 6088 | 20 270 10 241 270 270 206 . 338 . 452 340 215 130 100 170 110 294 30 40 5 . 271 32 . 299 214 219 662 750 130 Search Patrol Dispatched 300 | . . . . . . . . . . 200 . . . . 100 . . . . . . . . . . . . . . . Lost Part 847 | . 20 . . 40 . . . 30 . 110 60 10 . 70 110 30 10 . . . . 7 . . 10 . . . 100 240 Lost Ally 1098 | . 20 . . . 110 . . 255 . 110 333 20 . 60 . . 160 . . . . 10 . . 10 10 . . . . Purge Threat 2608 | . . . 66 150 150 . . . . 300 . . . . . . 496 . . . . 35 . . 118 113 150 280 750 . Squads Dispatched 158 | . 2 . 2 3 1 . . 12 . 20 4 . . 7 7 . 10 . . . . 8 . . 11 2 3 7 7 52 Investigation 65 | . 1 . 1 3 . . . 8 . 13 4 . . 2 6 . 7 . . . . 5 . . 8 . . 4 1 2 Extermination 20 | . . . . . . . . 2 . 3 . . . . 1 . 2 . . . . 3 . . 1 2 1 2 2 1 Reinforcement 22 | . 1 . 1 . 1 . . 2 . 4 . . . 3 . . 1 . . . . . . . 2 . 2 1 4 . Assault 51 | . . . . . . . . . . . . . . 2 . . . . . . . . . . . . . . . 49 Garrison . | . . . . . . . . . . . . . . . . . . . . . . . . . . . . . . . Intercept . | . . . . . . . . . . . . . . . . . . . . . . . . . . . . . . . Searches Triggered 3 | . . . . . . . . . . 2 . . . . 1 . . . . . . . . . . . . . . . Unchained Authorized 6 | . . . . . . . . . . . 1 . . 1 1 . 1 . . . . 1 . . . . 1 . . . Construction Impeded 3 | . . . . . . . . . . 1 . . . 1 . . . . . . . . . . . . . . 1 . Haulers Reinforced 2 | . . . . . . . . . . . . . . . . . . . . . . . . . 1 . 1 . . . Active Scanning Responses 2 | . . . . . . . . . . . . . . . . . . . . . . . . . . . . . . 2 Cargo Convoy Interrupts . | . . . . . . . . . . . . . . . . . . . . . . . . . . . . . . . Stealth | -11 -10 -10 -9 -8 -8 -8 -8 -6 -6 -6 -6 -6 -6 -6 -5 -5 -5 -5 -5 -5 -4 -4 -4 -4 -3 -3 -2 -2 -2 -1 --------- Run | Yrd Mat Min Mat Mat Sto Rec Scr Fac Was Fac Ext Cet Arc Hub Fac Was Fac Upp Upp Zhi Pro Fac Arm Lab Res Tes Res Qua Frg Acc Distress Signals 47 | . 2 . 3 1 2 . . 4 . 4 1 1 . 1 1 . 2 . . . . 2 1 . 7 2 1 . 8 4 Communications Jammed . | . . . . . . . . . . . . . . . . . . . . . . . . . . . . . . . Distress Signals . | . . . . . . . . . . . . . . . . . . . . . . . . . . . . . . . Times Spotted 945 | . 27 . 26 28 19 6 . 32 3 74 30 9 14 31 29 7 26 . 3 . 4 40 3 . 26 24 27 38 247 172 Peak Tracking Total 19 | . 8 . 11 9 4 3 . 7 3 15 9 5 1 17 13 6 7 . 3 . 4 10 8 . 7 10 4 4 12 19 Tactical Retreats 128 | . 2 . 3 4 1 . . 4 . 19 4 . . . 4 1 6 . . . 1 10 . . 9 6 5 3 24 22 ECM-based Alert Blocks 32 | . . . . . . . . . . . . . . . . . 16 . . . 4 12 . . . . . . . . Traps | -11 -10 -10 -9 -8 -8 -8 -8 -6 -6 -6 -6 -6 -6 -6 -5 -5 -5 -5 -5 -5 -4 -4 -4 -4 -3 -3 -2 -2 -2 -1 ------- Run | Yrd Mat Min Mat Mat Sto Rec Scr Fac Was Fac Ext Cet Arc Hub Fac Was Fac Upp Upp Zhi Pro Fac Arm Lab Res Tes Res Qua Frg Acc Traps Triggered 33 | . 5 . . . . . . 2 . 3 2 . . . 2 . 2 . . . . . . . . 2 . . 13 2 Indirectly 5 | . 5 . . . . . . . . . . . . . . . . . . . . . . . . . . . . . Trap Hack Attempts . | . . . . . . . . . . . . . . . . . . . . . . . . . . . . . . . Triggered . | . . . . . . . . . . . . . . . . . . . . . . . . . . . . . . . Disarmed . | . . . . . . . . . . . . . . . . . . . . . . . . . . . . . . . Reprogrammed . | . . . . . . . . . . . . . . . . . . . . . . . . . . . . . . . Reused . | . . . . . . . . . . . . . . . . . . . . . . . . . . . . . . . Traps Extracted . | . . . . . . . . . . . . . . . . . . . . . . . . . . . . . . . Installed . | . . . . . . . . . . . . . . . . . . . . . . . . . . . . . . . Triggered . | . . . . . . . . . . . . . . . . . . . . . . . . . . . . . . . Machines | -11 -10 -10 -9 -8 -8 -8 -8 -6 -6 -6 -6 -6 -6 -6 -5 -5 -5 -5 -5 -5 -4 -4 -4 -4 -3 -3 -2 -2 -2 -1 ---------- Run | Yrd Mat Min Mat Mat Sto Rec Scr Fac Was Fac Ext Cet Arc Hub Fac Was Fac Upp Upp Zhi Pro Fac Arm Lab Res Tes Res Qua Frg Acc Machines Disabled 121 | . 10 . . 2 1 . . 4 . 1 1 . 2 14 2 . 9 . . . . . . 1 1 6 . 7 50 10 Max in Single Turn 10 | . 5 . . 1 1 . . 2 . 1 . . 1 10 1 . 4 . . . . . . 1 1 1 . 1 6 1 Garrison Access 15 | . . . . 1 1 . . 1 . 1 . . . 1 . . 1 . . . . 1 . . 4 1 . 1 1 1 Network Hub 3 | . . . . . . . . . . . . . . 3 . . . . . . . . . . . . . . . . Machines Repaired . | . . . . . . . . . . . . . . . . . . . . . . . . . . . . . . . Machines Dismantled . | . . . . . . . . . . . . . . . . . . . . . . . . . . . . . . . Machines Sabotaged 2 | . . . . . . . . . . . . . . 2 . . . . . . . . . . . . . . . . Overloaded Fab Kills . | . . . . . . . . . . . . . . . . . . . . . . . . . . . . . . . Hacking | -11 -10 -10 -9 -8 -8 -8 -8 -6 -6 -6 -6 -6 -6 -6 -5 -5 -5 -5 -5 -5 -4 -4 -4 -4 -3 -3 -2 -2 -2 -1 --------- Run | Yrd Mat Min Mat Mat Sto Rec Scr Fac Was Fac Ext Cet Arc Hub Fac Was Fac Upp Upp Zhi Pro Fac Arm Lab Res Tes Res Qua Frg Acc Machines Accessed 254 | . 9 . 5 10 15 11 2 18 . 28 16 1 . 2 14 . 27 . . 4 . 17 3 . 23 11 5 17 15 1 Terminals 146 | . 7 . 3 6 11 6 . 8 . 13 15 1 . 2 5 . 15 . . . . 6 1 . 9 8 5 12 12 1 Fabricators 15 | . . . . . . . . 3 . 2 . . . . 3 . . . . . . 2 2 . 3 . . . . . Repair Stations 16 | . 1 . . 1 2 . . 1 . 3 . . . . 1 . 3 . . . . 1 . . 1 . . 1 1 . Recycling Units 39 | . 1 . . 1 1 5 . 3 . 6 1 . . . 4 . 6 . . . . 5 . . 5 . . . 1 . Scanalyzers 18 | . . . 2 1 . . . 2 . 2 . . . . 1 . 2 . . . . 2 . . 1 2 . 3 . . Garrison Access 14 | . . . . 1 1 . . 1 . 2 . . . . . . 1 . . . . 1 . . 4 1 . 1 1 . Total Hacks 952 | . 36 . 23 30 47 33 22 56 . 65 31 1 . 6 54 . 140 . . 17 . 76 8 . 74 44 31 80 77 1 Successful 655 | . 23 . 15 17 36 26 22 38 . 43 20 1 . 3 33 . 86 . . 17 . 59 5 . 55 33 18 54 51 . Failed 289 | . 12 . 7 13 10 7 . 17 . 22 11 . . 3 21 . 53 . . . . 17 3 . 18 10 13 25 26 1 Catastrophic 33 | . . . . . 1 1 . 2 . 3 . . . . 3 . 7 . . . . 5 1 . . . 2 5 2 1 Database Lockouts 8 | . 1 . 1 . 1 . . 1 . . . . . . . . 1 . . . . . . . 1 1 . 1 . . Manual 572 | . 30 . 13 22 30 29 . 31 . 47 14 1 . 6 34 . 87 . . . . 47 7 . 35 24 19 43 52 1 Terminals 669 | . 29 . 15 24 36 28 . 26 . 38 30 1 . 6 25 . 113 . . . . 47 4 . 45 38 31 61 71 1 Fabricators 54 | . . . . . . . . 11 . 3 . . . . 17 . . . . . . 10 4 . 9 . . . . . Repair Stations 57 | . 6 . . 1 6 . . 2 . 8 . . . . 4 . 11 . . . . 4 . . 2 . . 9 4 . Recycling Units 44 | . 1 . . 1 3 5 . 3 . 8 1 . . . 4 . 7 . . . . 5 . . 5 . . . 1 . Scanalyzers 69 | . . . 8 1 . . . 13 . 5 . . . . 4 . 8 . . . . 9 . . 7 5 . 9 . . Garrison Access 20 | . . . . 3 2 . . 1 . 3 . . . . . . 1 . . . . 1 . . 6 1 . 1 1 . Terminal Hacks 234 | . 3 . 4 3 14 8 22 6 . 9 8 1 . . 2 . 34 . . 17 . 15 . . 15 17 5 22 29 . Record 33 | . . . . . . . 22 . . . . . . . . . . . . 5 . . . . . . . 1 5 . Part Schematic 24 | . . . . . 1 3 . . . . . . . . . . 3 . . 4 . 1 . . 4 4 . 3 1 . Robot Schematic 2 | . . . . . . 1 . . . . . . . . . . . . . . . . . . 1 . . . . . Robot Analysis 15 | . 1 . 2 . 4 . . 1 . . . . . . . . . . . 4 . 2 . . . . . . 1 . Prototype ID Bank 22 | . . . . 1 1 . . 1 . . . . . . 1 . 3 . . 4 . 1 . . . 4 . 4 2 . Open Door 16 | . . . . . 3 . . 1 . 1 8 1 . . . . . . . . . . . . . . . 2 . . Level Access Points 1 | . . . . . . . . . . . . . . . . . . . . . . . . . . 1 . . . . Branch Access Points 6 | . . . 1 1 . . . . . 1 . . . . . . 1 . . . . 1 . . . . . . 1 . Emergency Access Points 1 | . . . . . . . . . . . . . . . . . 1 . . . . . . . . . . . . . Machine Index 4 | . . . . . . . . . . . . . . . . . 1 . . . . . . . 1 . . 1 1 . Terminal Index 8 | . 1 . . . . 1 . 1 . 1 . . . . . . 1 . . . . . . . . . 1 1 1 . Fabricator Index 2 | . . . . . . . . 1 . . . . . . . . 1 . . . . . . . . . . . . . Recycling Unit Index 2 | . . . . . . . . . . 1 . . . . . . . . . . . . . . . . . . 1 . Scanalyzer Index 1 | . . . . . . . . . . . . . . . . . 1 . . . . . . . . . . . . . Garrison Index 2 | . . . . . . . . . . . . . . . . . . . . . . 1 . . . 1 . . . . Alert Level 11 | . . . . . . . . . . . . . . . . . 3 . . . . . . . 2 1 . 3 2 . Unreport Threat 21 | . . . 1 1 1 . . . . 2 . . . . . . 5 . . . . 1 . . 1 1 1 2 5 . Locate Traps 6 | . . . . . 1 . . . . 1 . . . . . . 2 . . . . 1 . . 1 . . . . . Extermination Status 2 | . . . . . . . . . . . . . . . . . 1 . . . . . . . . . . 1 . . Recall Extermination 9 | . . . . . . . . . . . . . . . . . 2 . . . . 1 . . 2 2 . 1 1 . Recall Reinforcements 1 | . . . . . . . . . . 1 . . . . . . . . . . . . . . . . . . . . Registered Components 5 | . . . . . . . . . . . . . . . . . 1 . . . . 1 . . 1 . . 1 1 . Registered Prototypes 2 | . . . . . . . . . . . . . . . . . 1 . . . . . . . . . 1 . . . Zone Layout 37 | . 1 . . . 3 3 . 1 . 1 . . . . 1 . 7 . . . . 5 . . 2 3 2 2 6 . Proto ID Catalog 1 | . . . . . . . . . . . . . . . . . . . . . . . . . . . . . 1 . Fabricator Hacks 23 | . . . . . . . . 5 . 1 . . . . 8 . . . . . . 3 1 . 5 . . . . . Network Status 4 | . . . . . . . . . . . . . . . 1 . . . . . . 2 1 . . . . . . . Load Schematic 11 | . . . . . . . . 3 . 1 . . . . 4 . . . . . . . . . 3 . . . . . Build 8 | . . . . . . . . 2 . . . . . . 3 . . . . . . 1 . . 2 . . . . . Repair Station Hacks 43 | . 6 . . . 6 . . 2 . 4 . . . . 2 . 6 . . . . 4 . . 2 . . 7 4 . Scan Component 22 | . 3 . . . 3 . . 1 . 2 . . . . 1 . 3 . . . . 2 . . 1 . . 4 2 . Repair 21 | . 3 . . . 3 . . 1 . 2 . . . . 1 . 3 . . . . 2 . . 1 . . 3 2 . Recycling Unit Hacks 1 | . . . . . 1 . . . . . . . . . . . . . . . . . . . . . . . . . Retrieve Components 1 | . . . . . 1 . . . . . . . . . . . . . . . . . . . . . . . . . Scanalyzer 49 | . . . 6 1 . . . 9 . 5 . . . . 2 . 4 . . . . 9 . . 6 3 . 4 . . Insert Component 20 | . . . 3 . . . . 3 . 1 . . . . 1 . 2 . . . . 4 . . 1 1 . 4 . . Analyze 16 | . . . 3 . . . . 4 . 1 . . . . 1 . 2 . . . . 3 . . 1 1 . . . . Retrieve Study 13 | . . . . 1 . . . 2 . 3 . . . . . . . . . . . 2 . . 4 1 . . . . Garrison Access Hacks 12 | . . . . . 1 . . 1 . 1 . . . . . . 1 . . . . 1 . . 4 1 . 1 1 . Seal Access 12 | . . . . . 1 . . 1 . 1 . . . . . . 1 . . . . 1 . . 4 1 . 1 1 . Unauthorized Hacks 293 | . 14 . 5 13 14 18 . 15 . 23 12 . . 3 19 . 41 . . . . 27 4 . 23 12 13 20 17 . Terminals 226 | . 13 . 4 10 12 13 . 8 . 14 11 . . 3 11 . 34 . . . . 18 2 . 15 12 13 17 16 . Track 29 | . . . . . . 2 . 1 . 1 1 . . . 1 . 9 . . . . 5 . . 1 1 3 2 2 . Assimilate 11 | . . . . 1 1 . . 1 . 1 1 . . . . . 2 . . . . 1 . . 1 2 . . . . Botnet 82 | . 5 . 1 1 5 5 . 2 . 4 4 . . 1 5 . 15 . . . . 5 1 . 6 2 4 9 7 . Disrupt 10 | . 1 . . 2 . 1 . . . . . . . . . . . . . . . 2 . . . 2 . . 2 . Operators 4 | . 1 . . . 1 . . . . . . . . . . . 1 . . . . . . . . . 1 . . . Skim 88 | . 6 . 3 6 5 5 . 4 . 8 5 . . . 5 . 7 . . . . 5 1 . 7 5 5 6 5 . Sabotage 2 | . . . . . . . . . . . . . . 2 . . . . . . . . . . . . . . . . Fabricators 18 | . . . . . . . . 3 . 2 . . . . 4 . . . . . . 4 2 . 3 . . . . . Report 2 | . . . . . . . . . . . . . . . . . . . . . . 2 . . . . . . . . Prioritize 7 | . . . . . . . . 2 . . . . . . 2 . . . . . . 1 . . 2 . . . . . Liberate 2 | . . . . . . . . . . . . . . . . . . . . . . . 2 . . . . . . . Haulers 1 | . . . . . . . . . . . . . . . . . . . . . . 1 . . . . . . . . Overload 1 | . . . . . . . . . . 1 . . . . . . . . . . . . . . . . . . . . Recompile 5 | . . . . . . . . 1 . 1 . . . . 2 . . . . . . . . . 1 . . . . . Repair Stations 4 | . . . . 1 . . . . . 2 . . . . . . 1 . . . . . . . . . . . . . Patch 4 | . . . . 1 . . . . . 2 . . . . . . 1 . . . . . . . . . . . . . Recycling Units 39 | . 1 . . 1 2 5 . 3 . 5 1 . . . 4 . 6 . . . . 5 . . 5 . . . 1 . Reject 1 | . . . . . 1 . . . . . . . . . . . . . . . . . . . . . . . . . Mask 1 | . . . . . 1 . . . . . . . . . . . . . . . . . . . . . . . . . Tunnel 7 | . 1 . . 1 . 5 . . . . . . . . . . . . . . . . . . . . . . . . Fedlink 28 | . . . . . . . . 3 . 4 . . . . 4 . 6 . . . . 5 . . 5 . . . 1 . Scrapoids 2 | . . . . . . . . . . 1 1 . . . . . . . . . . . . . . . . . . . Scanalyzers 5 | . . . 1 . . . . 1 . . . . . . . . . . . . . . . . . . . 3 . . Extract 5 | . . . 1 . . . . 1 . . . . . . . . . . . . . . . . . . . 3 . . Garrison Access 1 | . . . . 1 . . . . . . . . . . . . . . . . . . . . . . . . . . Jam 1 | . . . . 1 . . . . . . . . . . . . . . . . . . . . . . . . . . Data Cores Recovered 4 | . . . . 1 . . . . . 1 . . . . . . 1 . . . . . . . 1 . . . . . Used 2 | . . . . . . . . . . 1 . . . . . . 1 . . . . . . . . . . . . . Hacking Detections 149 | . 7 . 3 8 12 3 . 7 . 19 8 . . . 6 . 18 . . . . 8 3 . 12 10 5 9 10 1 Full Trace Events 11 | . . . . . . . . 2 . 4 3 . . . . . . . . . . . . . 1 . . 1 . . Feedback Events . | . . . . . . . . . . . . . . . . . . . . . . . . . . . . . . . Feedback Blocked . | . . . . . . . . . . . . . . . . . . . . . . . . . . . . . . . Robot Schematics Acquired 14 | . . . . . . 1 . . . . . . . . . . . . . . . . . . 1 3 . 6 3 . Robots Built 2 | . . . . . . . . 2 . . . . . . . . . . . . . . . . . . . . . . Authchips . | . . . . . . . . . . . . . . . . . . . . . . . . . . . . . . . Time 87 | . . . . . . . . 87 . . . . . . . . . . . . . . . . . . . . . . Total Robot Build Rating 6 | . . . . . . . . 6 . . . . . . . . . . . . . . . . . . . . . . Part Schematics Acquired 88 | . . . 5 . 1 3 . 4 . 1 . . . . 1 . 5 . . 4 . 4 . . 5 12 . 30 13 . Parts Built 9 | . . . . . . . . . . . . . . . 4 . . . . . . 2 . . 3 . . . . . Authchips 3 | . . . . . . . . . . . . . . . 2 . . . . . . . . . 1 . . . . . Time 180 | . . . . . . . . . . . . . . . 62 . . . . . . 69 . . 49 . . . . . Total Part Build Rating 43 | . . . . . . . . . . . . . . . 12 . . . . . . 18 . . 13 . . . . . Part Studies Acquired 13 | . . . . 1 . . . 2 . 3 . . . . . . . . . . . 2 . . 4 1 . . . . Parts Repaired 21 | . 3 . . . 3 . . 1 . 2 . . . . 1 . 3 . . . . 2 . . 1 . . 3 2 . Time 816 | . 78 . . . 124 . . 19 . 44 . . . . 34 . 118 . . . . 94 . . 56 . . 101 148 . Parts Recycled . | . . . . . . . . . . . . . . . . . . . . . . . . . . . . . . . Recycled Matter . | . . . . . . . . . . . . . . . . . . . . . . . . . . . . . . . Retrieved Matter . | . . . . . . . . . . . . . . . . . . . . . . . . . . . . . . . Retrieved Components 8 | . . . . . 8 . . . . . . . . . . . . . . . . . . . . . . . . . Parts Scanalyzed 15 | . . . 3 . . . . 3 . 1 . . . . 1 . 2 . . . . 3 . . 1 1 . . . . Part Schematics Acquired 15 | . . . 3 . . . . 3 . 1 . . . . 1 . 2 . . . . 3 . . 1 1 . . . . Parts Damaged 2 | . . . 1 . . . . 1 . . . . . . . . . . . . . . . . . . . . . . Bothacking | -11 -10 -10 -9 -8 -8 -8 -8 -6 -6 -6 -6 -6 -6 -6 -5 -5 -5 -5 -5 -5 -4 -4 -4 -4 -3 -3 -2 -2 -2 -1 ------------ Run | Yrd Mat Min Mat Mat Sto Rec Scr Fac Was Fac Ext Cet Arc Hub Fac Was Fac Upp Upp Zhi Pro Fac Arm Lab Res Tes Res Qua Frg Acc Used RIF Installer . | . . . . . . . . . . . . . . . . . . . . . . . . . . . . . . . Robots Hacked 16 | . . . . . . . . 1 . . 1 . 2 . . . . . . . . 3 . . . 4 . 5 . . Non-combat 6 | . . . . . . . . 1 . . . . 2 . . . . . . . . 3 . . . . . . . . Combat 1 | . . . . . . . . . . . 1 . . . . . . . . . . . . . . . . . . . Robot Hacks Applied 9 | . . . . . . . . 1 . . 1 . 2 . . . . . . . . 5 . . . . . . . . parse_system 1 | . . . . . . . . . . . 1 . . . . . . . . . . . . . . . . . . . find_chute 6 | . . . . . . . . 1 . . . . . . . . . . . . . 5 . . . . . . . . check_alert 2 | . . . . . . . . . . . . . 2 . . . . . . . . . . . . . . . . . Manual 9 | . . . . . . . . . . . . . . . . . . . . . . . . . . 4 . 5 . . Relay Couplers Released 2 | . . . . . . . . . . . . . . . . . . . . . . . . . . . . . . 2 Machine Destruction 2 | . . . . . . . . . . . . . . . . . . . . . . . . . . . . . . 2 Fabnet Peak Effective % . | . . . . . . . . . . . . . . . . . . . . . . . . . . . . . . . Robots Rewired 19 | . 1 . . . . 12 . . . . 6 . . . . . . . . . . . . . . . . . . . Allies Hacked . | . . . . . . . . . . . . . . . . . . . . . . . . . . . . . . . Hacks Repelled . | . . . . . . . . . . . . . . . . . . . . . . . . . . . . . . . Allies | -11 -10 -10 -9 -8 -8 -8 -8 -6 -6 -6 -6 -6 -6 -6 -5 -5 -5 -5 -5 -5 -4 -4 -4 -4 -3 -3 -2 -2 -2 -1 -------- Run | Yrd Mat Min Mat Mat Sto Rec Scr Fac Was Fac Ext Cet Arc Hub Fac Was Fac Upp Upp Zhi Pro Fac Arm Lab Res Tes Res Qua Frg Acc Total Allies 82 | . 1 . . . 11 12 . 3 . 6 21 5 . . . 19 1 . . . . 1 . . 1 1 . . . . Largest Group 19 | . 1 . . . 10 15 15 16 . 4 14 5 5 4 . 19 16 . . . . 1 . . 1 1 . . . . Highest-Rated Group 684 | . 16 . . . 173 209 209 235 . 112 410 480 461 365 . 684 607 . . . . 26 . . 45 45 . . . . Highest-Rated Ally 159 | . 16 . . . 29 29 29 29 . 28 159 159 96 96 . 50 50 . . . . 26 . . 45 45 . . . . Total Orders 16 | . . . . . . 3 2 2 . . 1 . 4 3 . . . . . . . . . . . . . . 1 . STAY 4 | . . . . . . 1 1 . . . . . . 2 . . . . . . . . . . . . . . . . ROAM 3 | . . . . . . . . . . . 1 . 1 1 . . . . . . . . . . . . . . . . FOLLOW 5 | . . . . . . 1 1 . . . . . 3 . . . . . . . . . . . . . . . . . AID 2 | . . . . . . . . 2 . . . . . . . . . . . . . . . . . . . . . . DROP 1 | . . . . . . 1 . . . . . . . . . . . . . . . . . . . . . . . . RETURN 1 | . . . . . . . . . . . . . . . . . . . . . . . . . . . . . 1 . Ally Attacks 570 | . 9 . . . 121 11 . 44 . 45 106 34 26 49 . 77 48 . . . . . . . . . . . . . Total Damage 13307 | . 66 . . . 1516 123 . 557 . 761 2227 1328 1089 1688 . 2759 1193 . . . . . . . . . . . . . Kills 79 | . 1 . . . 21 1 . 5 . 6 13 5 4 8 . 8 7 . . . . . . . . . . . . . Allies Corrupted 1 | . . . . . . . . . . . . . . . . . . . . . . 1 . . . . . . . . Allies Melted 3 | . . . . . . 1 . . . . . . . . . . . . . . . . . . . . . . 2 . Intel | -11 -10 -10 -9 -8 -8 -8 -8 -6 -6 -6 -6 -6 -6 -6 -5 -5 -5 -5 -5 -5 -4 -4 -4 -4 -3 -3 -2 -2 -2 -1 ------- Run | Yrd Mat Min Mat Mat Sto Rec Scr Fac Was Fac Ext Cet Arc Hub Fac Was Fac Upp Upp Zhi Pro Fac Arm Lab Res Tes Res Qua Frg Acc Active Infowar (turns) 20502 | 13 505 . 536 580 470 . . 815 15 1106 769 503 265 214 352 232 734 65 85 72 105 921 112 159 900 491 478 3593 5033 1379 Optics 15824 | . . . . . . . . . . 637 769 503 265 214 352 232 174 . . . . 533 112 159 900 491 478 3593 5033 1379 Sensors 12386 | . . . . . . . . 473 15 309 . . . . 297 127 458 65 85 72 99 876 112 159 900 480 461 3582 3816 . A.S.S. 2566 | . . . . . . . . . . . . . . . . . . . . . . . . . . . . . 1187 1379 IFF 23 | . . . . . . . . . . . . . . . . . 23 . . . . . . . . . . . . . Terrain 233 | . . . . 233 . . . . . . . . . . . . . . . . . . . . . . . . . . Structural 5571 | . . . . 23 470 . . 342 . 229 . . . . . . 585 65 85 60 9 917 112 132 888 491 478 416 269 . Seismic 1122 | 13 452 . 535 122 . . . . . . . . . . . . . . . . . . . . . . . . . . T.N.C. 446 | . 446 . . . . . . . . . . . . . . . . . . . . . . . . . . . . . Machine Analysis 1805 | . . . 536 580 293 . . . . . . . . . . . 75 . . . . . . . . . . . 321 . Cloaking 3613 | . . . . . . . . . . . . . . . . . . . . . . 314 . . . . . . 2535 764 ECM 655 | . . . . . . . . . . . . . . . . . 412 . . . 21 222 . . . . . . . . Robot Analysis Total 15 | . 1 . 2 . 4 . . 1 . . . . . . . . . . . 4 . 2 . . . . . . 1 . Derelict Logs Recovered 3 | . . . . . . . . . . . . . . . . . . 1 . . 2 . . . . . . . . . Drone Launches 1 | . . . . . . . . . . . . . . . . . . . . . . . . . . . . . 1 . Drone Recoveries 1 | . . . . . . . . . . . . . . . . . . . . . . . . . . . . . 1 . Exploration | -11 -10 -10 -9 -8 -8 -8 -8 -6 -6 -6 -6 -6 -6 -6 -5 -5 -5 -5 -5 -5 -4 -4 -4 -4 -3 -3 -2 -2 -2 -1 ------------- Run | Yrd Mat Min Mat Mat Sto Rec Scr Fac Was Fac Ext Cet Arc Hub Fac Was Fac Upp Upp Zhi Pro Fac Arm Lab Res Tes Res Qua Frg Acc Turns Passed 21827 | 94 596 25 536 580 591 437 483 820 15 1137 820 503 265 214 352 232 734 65 85 72 105 921 112 159 900 491 478 3593 5033 1379 Spaces Moved 33196 | 46 732 65 511 355 764 436 1229 1245 62 2198 973 381 236 281 733 385 1617 214 245 153 233 1937 281 181 2140 852 620 4254 8121 1716 Core 289 | 1 140 . . . . . . . . . . . 6 . 1 . . . . . . . . . . . . 139 . 2 Treads . | . . . . . . . . . . . . . . . . . . . . . . . . . . . . . . . Legs . | . . . . . . . . . . . . . . . . . . . . . . . . . . . . . . . Wheels 63 | 45 18 . . . . . . . . . . . . . . . . . . . . . . . . . . . . . Hover 5736 | . . . . . . . . . . . . 345 230 281 22 . . . . . . . . . . . . . 3144 1714 Flight 27108 | . 574 65 511 355 764 436 1229 1245 62 2198 973 36 . . 710 385 1617 214 245 153 233 1937 281 181 2140 852 620 4115 4977 . Fastest Speed 15 | 50 37 37 37 29 26 26 26 24 23 21 21 30 48 48 29 27 20 28 28 28 28 22 28 28 27 26 28 22 15 33 Average Speed 32 | 88 50 37 37 31 27 26 26 26 24 25 21 53 66 51 34 28 25 28 28 28 28 28 28 28 28 27 28 55 25 37 Slowest Speed 1050 | 95 120 37 37 37 32 26 26 29 28 98 30 101 700 56 80 29 29 28 28 28 28 34 28 28 111 28 108 1050 125 98 Overloaded Moves 13 | . . . . . . . . . . . . . . . . . . . . . . . . . . . . . 13 . Propulsion Burnouts . | . . . . . . . . . . . . . . . . . . . . . . . . . . . . . . . Robots Hopped 127 | . 10 2 6 3 5 3 . 3 2 18 8 . . . 5 2 4 . 1 . . 7 . . 12 3 5 5 23 . Potential Cave-ins 3 | . . . . . . . . . . . . . . . . . . . . . . . . . . . . . 3 . Cave-ins Triggered . | . . . . . . . . . . . . . . . . . . . . . . . . . . . . . . . Teleports 5 | . . . . . . . . . . . . . . . . . . . . . . . 1 . . . . 3 1 . Exploration Rate (%) 60 | 3 91 35 42 42 86 73 88 31 72 66 79 90 98 36 23 92 55 49 36 60 53 50 17 94 73 90 20 99 89 36 Regions Visited 30 Branch Regions 17 Pre-discovered Areas 28 | . 2 1 . 2 2 7 5 1 . 1 . . . . . . . 1 . 3 . . . . 1 . . 1 1 . Known Exits Taken 22 | . 1 1 . 1 1 1 1 . . 1 1 . . 1 . . 1 1 1 1 1 1 1 1 1 1 1 1 1 . Unknown Exits Taken 4 | 1 . . 1 . . . . . . . . 1 1 . . . . . . . . . . . . . . . . . Scrap Searched 9 | . . . . . . . 5 . . . . . . . . . . . 2 . 2 . . . . . . . . . Spaces Dug 499 | . 17 . . 12 11 1 . 13 . 72 2 . . 3 5 3 28 1 1 . 51 47 5 . 32 13 82 29 18 53 Terrain Destroyed 1562 | . 73 . . 17 11 1 . 36 . 81 28 6 . 203 5 64 72 1 1 . 51 47 5 . 32 13 82 31 149 553 Melee 318 | . . . . 12 11 1 . 13 . 72 2 . . 3 5 3 28 1 1 . 3 47 5 . 32 13 6 29 15 16 Projectile 286 | . . . . . . . . . . . . 6 . . . . . . . . . . . . . . . 2 91 187 AOE 958 | . 73 . . 5 . . . 23 . 9 26 . . 200 . 61 44 . . . 48 . . . . . 76 . 43 350 Terrain Rammed . | . . . . . . . . . . . . . . . . . . . . . . . . . . . . . . . Walls Destroyed . | . . . . . . . . . . . . . . . . . . . . . . . . . . . . . . . Machines Disabled . | . . . . . . . . . . . . . . . . . . . . . . . . . . . . . . . Actions | -11 -10 -10 -9 -8 -8 -8 -8 -6 -6 -6 -6 -6 -6 -6 -5 -5 -5 -5 -5 -5 -4 -4 -4 -4 -3 -3 -2 -2 -2 -1 --------- Run | Yrd Mat Min Mat Mat Sto Rec Scr Fac Was Fac Ext Cet Arc Hub Fac Was Fac Upp Upp Zhi Pro Fac Arm Lab Res Tes Res Qua Frg Acc Total 41505 | 69 854 63 795 753 1050 749 1393 1656 59 2576 1530 644 311 331 802 493 1865 216 258 172 264 2215 306 280 2349 1057 859 5121 10303 2112 Wait 5316 | . 47 1 234 348 191 258 157 333 . 243 506 201 35 25 30 97 166 2 14 . 21 179 18 81 114 137 177 430 1187 84 Move 32927 | 45 711 60 499 348 754 429 1228 1239 58 2162 956 380 235 280 723 381 1608 213 242 152 232 1923 280 180 2117 845 609 4244 8080 1714 Hop 111 | . 10 2 5 3 4 3 . 3 1 17 8 . . . 5 1 4 . 1 . . 6 . . 10 3 5 4 16 . Pick Up 156 | 4 8 . 6 1 9 5 4 5 . 10 3 3 1 2 1 1 3 . . 2 . 4 . 2 7 3 . 14 48 10 Fast Attach 287 | 7 4 . 2 6 13 2 . 7 . 21 8 10 7 2 19 3 19 . . 6 . 11 . 6 17 12 2 39 50 14 Attach 136 | . 3 . 3 4 . . . 6 . 8 2 3 . 2 7 2 2 . . . 1 6 . 1 5 1 7 7 36 30 Detach 80 | . . . 1 2 2 . . 3 . 2 1 2 1 2 1 1 4 . . 1 1 4 . 3 . 2 5 5 22 15 Swap 191 | . 7 . 4 5 9 . . 11 . 11 4 3 . 1 . . 3 . . 2 4 8 2 . 9 6 1 15 80 6 Drop 295 | . 9 . 10 3 17 2 4 6 . 14 8 9 7 1 5 . 14 . . 4 . 11 1 2 21 14 2 45 71 15 Fire 1217 | 13 49 . 31 15 3 . . 7 . 2 3 29 4 11 1 4 3 . . . 2 . . . . 9 32 264 545 190 Melee 624 | . . . . 18 48 3 . 36 . 86 31 4 21 5 10 3 39 1 1 5 3 63 5 5 49 25 19 54 67 23 Ram 2 | . . . . . . . . . . . . . . . . . . . . . . . . . . . . . . 2 Kick . | . . . . . . . . . . . . . . . . . . . . . . . . . . . . . . . Crush . | . . . . . . . . . . . . . . . . . . . . . . . . . . . . . . . Escape Stasis 93 | . . . . . . . . . . . . . . . . . . . . . . . . . . . . . 84 9 Rewire 53 | . 6 . . . . 47 . . . . . . . . . . . . . . . . . . . . . . . . Trap . | . . . . . . . . . . . . . . . . . . . . . . . . . . . . . . . Miscellaneous 17 | . . . . . . . . . . . . . . . . . . . . . . . . . . . . . 17 . Route ------- -11/Scrapyard -10/Materials (discovered 6 exits: *Mat x3 / *Min x2 / *Sub) -10/Mines (discovered 3 exits: *Mat / Exi / Sub) -9/Materials (discovered 2 exits: *Mat / *Min) -8/Materials (discovered 4 exits: Fac x3 / *Sto) -8/Storage (discovered 2 exits: *Fac / *Rec) -8/Recycling (discovered 2 exits: *Fac / *Scr) -8/Scraptown (discovered 2 exits: *Fac x2) -6/Factory (discovered 8 exits: *Fac x4 / *Low x2 / *Ext x2) -6/Waste -6/Factory (discovered 7 exits: *Fac x3 / *Low x2 / *Ext x2) -6/Extension (discovered 2 exits: *Fac / *Cet) -6/Cetus (discovered 3 exits: *Fac x2 / [*Arc]) -6/Archives (discovered 3 exits: *Fac / *Hub x2) -6/Hub_04(d) (discovered 2 exits: *Fac x2) -5/Factory (discovered 4 exits: *Fac x2 / Upp x2) -5/Waste -5/Factory (discovered 3 exits: *Fac / *Upp x2) -5/Upper Caves -5/Upper Caves -5/Zhirov -4/Proximity Caves -4/Factory (discovered 6 exits: *Res x3 / Upp x2 / *Arm) -4/Armory (discovered 2 exits: Res / *Lab) -4/Lab -3/Research (discovered 5 exits: *Res x3 / *Tes x2) -3/Testing -2/Research (discovered 5 exits: Acc x3 / *Qua x2) -2/Quarantine (discovered 3 exits: *Acc / *Sec / *Frg) -2/Protoforge -1/Access To Epsilon Eridani History --------- Turn | Location | Event 10 | -11/Scrapyard | Discovered new exit (range 15) 95 | -11/Scrapyard | Entered Materials 232 | -10/Materials | Central database locked down 233 | -10/Materials | Discovered new exit (range 16) 245 | -10/Materials | Discovered new exit (range 8) 312 | -10/Materials | Identified exit to Materials 351 | -10/Materials | Destroyed 8 combat bots 363 | -10/Materials | Identified exit to Subcaves 363 | -10/Materials | Identified exit to Mines 440 | -10/Materials | Learned Storage stockpile data 464 | -10/Materials | Learned location of Mines (-10) 476 | -10/Materials | Learned location of 1 exit from Recycling 477 | -10/Materials | Learned location of 2 exits from Mines 486 | -10/Materials | Learned 4 Recycling zone layouts 539 | -10/Materials | Learned 4 Subcaves zone layouts 581 | -10/Materials | Build established: Mutant 614 | -10/Materials | Repaired Flight Unit? 660 | -10/Materials | Repaired Grenade Launcher 686 | -10/Materials | Repaired Flight Unit 691 | -10/Materials | Entered Mines 692 | -10/Mines | Identified exit to Exiles 694 | -10/Mines | Met a Derelict bent on vengeance 713 | -10/Mines | Discovered exit to Materials (range 5) 714 | -10/Mines | Learned location of Storage (-8) 716 | -10/Mines | Entered Materials 716 | -9/Materials | Evolved 2 slots: Utility x2 727 | -9/Materials | Identified exit to Mines 869 | -9/Materials | Destroyed 8 combat bots 878 | -9/Materials | Central database locked down 1014 | -9/Materials | Build established: Scavenger-Mutant 1209 | -9/Materials | Discovered new exit (range 3) 1252 | -9/Materials | Entered another Materials area 1252 | -8/Materials | Evolved 2 slots: Propulsion x2 1442 | -8/Materials | Lost 4 parts (3n1u) 1451 | -8/Materials | Identified exit to Storage 1544 | -8/Materials | Learned location of 1 exit from Extension 1597 | -8/Materials | Learned location of 1 exit from Recycling 1640 | -8/Materials | Learned Factory emergency access door positions 1671 | -8/Materials | Learned location of 3 exits from Factory 1703 | -8/Materials | Learned Storage security intel 1710 | -8/Materials | Build established: Scavenger-Sprinter 1727 | -8/Materials | Learned location of 1 exit from Lower Caves 1763 | -8/Materials | Learned location of Zion (-6) 1809 | -8/Materials | Identified exit to Factory 1832 | -8/Materials | Entered Storage 1880 | -8/Storage | Assisted by bots powering up and referring to "LRC-V3" 2060 | -8/Storage | Discovered exit to Factory (range 5) 2099 | -8/Storage | Identified exit to Recycling 2128 | -8/Storage | Learned Recycling recycling unit intel 2138 | -8/Storage | Lost 5 allies 2147 | -8/Storage | Learned Factory emergency access door positions 2161 | -8/Storage | Learned Factory stockpile data 2162 | -8/Storage | Learned location of 1 exit from Lower Caves 2164 | -8/Storage | Learned Factory emergency access door positions 2211 | -8/Storage | Repaired Imp. Propulsion Shielding 2240 | -8/Storage | Repaired Grenade Launcher 2281 | -8/Storage | Met 01-MTF 2334 | -8/Storage | Central database locked down 2392 | -8/Storage | Repaired Enh. Autogun 2423 | -8/Storage | Entered Recycling 2423 | -8/Recycling | Accompanied by 4 allies (01-MTF) 2424 | -8/Recycling | Identified exit to Factory 2425 | -8/Recycling | Identified exit to Scraptown 2427 | -8/Recycling | Loaded intel: 5 recycling unit locations 2450 | -8/Recycling | Build established: Hacker-Sprinter 2728 | -8/Recycling | Learned location of 1 exit from Lower Caves 2752 | -8/Recycling | Learned Storage security intel 2752 | -8/Recycling | Scanned before Scraplab entrance 2753 | -8/Recycling | Learned location of 1 exit from Lower Caves 2791 | -8/Recycling | Learned location of 1 exit from Recycling 2791 | -8/Recycling | Entered Scraplab 2860 | -8/Recycling | Entered Scraptown 2860 | -8/Scraptown | Accompanied by 15 allies 2877 | -8/Scraptown | Visited UFD Registry 2877 | -8/Scraptown | Registered with UFD as "Slughacker" 2880 | -8/Scraptown | Visited SPCMW 2882 | -8/Scraptown | Visited Assassins FH 2887 | -8/Scraptown | Visited Cave Peace 2891 | -8/Scraptown | Build established: Commander-Sprinter 2891 | -8/Scraptown | Visited Bundlers 2910 | -8/Scraptown | Visited Fellowship of the Rings 3109 | -8/Scraptown | Visited Science Testing Area 3114 | -8/Scraptown | Visited Research Penetration Think Tank 3120 | -8/Scraptown | Visited Scrap Suit Storage 3128 | -8/Scraptown | Visited Cartography Club 3147 | -8/Scraptown | Learned location of Hub_04(d) (-6) 3147 | -8/Scraptown | Learned 16 Materials zone layouts 3147 | -8/Scraptown | Learned 12 Factory zone layouts 3147 | -8/Scraptown | Learned 12 Research zone layouts 3147 | -8/Scraptown | Learned 8 Lower Caves zone layouts 3147 | -8/Scraptown | Learned 12 Lower Caves zone layouts 3147 | -8/Scraptown | Learned 8 Proximity Caves zone layouts 3147 | -8/Scraptown | Learned 16 Proximity Caves zone layouts 3147 | -8/Scraptown | Learned 24 Proximity Caves zone layouts 3147 | -8/Scraptown | Learned 4 Hub_04(d) zone layouts 3147 | -8/Scraptown | Learned location of 1 exit from Research 3147 | -8/Scraptown | Learned location of 1 exit from Lower Caves 3155 | -8/Scraptown | Found Deep Structural Scanner 3222 | -8/Scraptown | Heard Great Nut preacher, LISTEN AND RECITE! 3254 | -8/Scraptown | Visited Awakened 3271 | -8/Scraptown | Visited Chapter 10 3274 | -8/Scraptown | Visited Curators Association 3302 | -8/Scraptown | Visited Observation Area 3307 | -8/Scraptown | Visited Derelict Rescue Squad 3312 | -8/Scraptown | Visited A0-MCA Data Center 3313 | -8/Scraptown | Given a B- rating by A0-MCA 3327 | -8/Scraptown | Met Optimus 3327 | -8/Scraptown | Accepted into 0bPrime 3343 | -8/Scraptown | Entered Factory 3343 | -6/Factory | Accompanied by 15 allies 3343 | -6/Factory | Evolved 4 slots: Propulsion x2, Utility x2 3344 | -6/Factory | Identified exit to Factory 3344 | -6/Factory | Identified exit to Lower Caves 3344 | -6/Factory | Identified exit to Extension 3377 | -6/Factory | Repaired Cesium-ion Thruster 3534 | -6/Factory | Fabricated M-28 Smith? 3558 | -6/Factory | Lost 4 allies 3683 | -6/Factory | Fabricated M-28 Smith (x1) 3705 | -6/Factory | Lost 4 allies 4032 | -6/Factory | Central database locked down 4042 | -6/Factory | Loaded intel: 8 recycling unit locations 4044 | -6/Factory | Allied Derelicts emerged from ambush trap array 4097 | -6/Factory | Learned location of Protoforge (-2) 4163 | -6/Factory | Manually triggered Chute Trap 4163 | -6/Factory | Sucked down chute 4163 | -6/Factory | Entered Waste 4167 | -6/Waste | Spotted C-40 Crusher 4168 | -6/Waste | Spotted C-40 Crusher 4175 | -6/Waste | Spotted C-40 Crusher 4176 | -6/Waste | Spotted C-40 Crusher 4176 | -6/Waste | Spotted C-40 Crusher 4176 | -6/Waste | Discovered new exit (range 10) 4178 | -6/Waste | EMP discharged 4178 | -6/Waste | Identified exit to Factory 4178 | -6/Waste | Entered Factory 4203 | -6/Factory | Build established: Hacker-Sprinter 4276 | -6/Factory | System corruption reached 10% 4280 | -6/Factory | Spotted B-75 Beast 4383 | -6/Factory | Discovered exit to Factory (range 13) 4414 | -6/Factory | Loaded intel: 8 recycling unit locations 4676 | -6/Factory | Scrapoid reinforcements arrived 4681 | -6/Factory | Lost 8 parts (1p4n2u1w) 4814 | -6/Factory | Discovered exit to Factory (range 5) 4841 | -6/Factory | Repaired Imp. Flight Unit 4862 | -6/Factory | Repaired Imp. Propulsion Shielding 4878 | -6/Factory | Search patrols dispatched 4881 | -6/Factory | Core integrity fell below 50% 5065 | -6/Factory | Learned location of 2 exits from Proximity Caves 5181 | -6/Factory | Learned Hub_04(d) stockpile data 5201 | -6/Factory | Learned location of Lower Caves (-6) 5212 | -6/Factory | Learned 2 Extension zone layouts 5228 | -6/Factory | Search patrols dispatched 5234 | -6/Factory | Learned Hub_04(d) stockpile data 5267 | -6/Factory | Learned 2 Lower Caves zone layouts 5312 | -6/Factory | Learned location of 2 exits from Proximity Caves 5315 | -6/Factory | Entered Extension 5316 | -6/Extension | Identified exit to Cetus 5419 | -6/Extension | Unchained authorized (6S-H0T) 5423 | -6/Extension | Rescued a captive Derelict 5426 | -6/Extension | Rescued a captive Derelict 5433 | -6/Extension | Scrapoid reinforcements arrived 5441 | -6/Extension | Rescued a captive Derelict 5441 | -6/Extension | Rescued a captive Derelict 5508 | -6/Extension | Spotted B-75 Beast 5510 | -6/Extension | Rescued a captive Derelict 5510 | -6/Extension | Rescued a captive Derelict 5736 | -6/Extension | Build established: Commander-Sprinter 5970 | -6/Extension | Spotted B-75 Beast 6007 | -6/Extension | Rescued a captive Derelict 6011 | -6/Extension | Rescued a captive Derelict 6013 | -6/Extension | Rescued a captive Derelict 6015 | -6/Extension | Rescued A7 6030 | -6/Extension | Rescued a captive Derelict 6043 | -6/Extension | Attached CPS modules to A7. 6094 | -6/Extension | Learned Factory scanalyzer intel 6111 | -6/Extension | Discovered exit to Factory (range 10) 6135 | -6/Extension | Entered Cetus 6135 | -6/Cetus | Accompanied by 1 ally (A7) 6140 | -6/Cetus | Acquired a Cetus Manufacturing Module code from A7 6147 | -6/Cetus | Attached CPS modules to A7. 6157 | -6/Cetus | Spotted Cetus Guard 6160 | -6/Cetus | Spotted Cetus Guard 6160 | -6/Cetus | Spotted Cetus Guard 6163 | -6/Cetus | Lost 4 parts (3n1w) 6164 | -6/Cetus | Spotted Cetus Guard 6168 | -6/Cetus | Allies destroyed Cetus Guard 6176 | -6/Cetus | Destroyed Cetus Guard 6198 | -6/Cetus | Destroyed Cetus Guard 6200 | -6/Cetus | Destroyed Cetus Guard 6206 | -6/Cetus | Found Prototype Protection 6206 | -6/Cetus | Identified Med. Regenerative Plating 6219 | -6/Cetus | Extracted ID and sensor layout for unrecognized location from A7's data core 6326 | -6/Cetus | Discovered exit to Factory (range 22) 6363 | -6/Cetus | Started Cetus Manufacturing Module 6388 | -6/Cetus | Manufactured an Enhanced Grunt 6413 | -6/Cetus | Manufactured an Enhanced Grunt 6438 | -6/Cetus | Manufactured an Enhanced Grunt 6463 | -6/Cetus | Manufactured an Enhanced Grunt 6488 | -6/Cetus | Manufactured an Enhanced Grunt 6512 | -6/Cetus | Discovered new exit (range 21) 6521 | -6/Cetus | Build established: Scavenger-Mutant 6528 | -6/Cetus | Spotted Cetus Guard 6528 | -6/Cetus | Spotted Cetus Guard 6528 | -6/Cetus | Spotted Cetus Guard 6528 | -6/Cetus | Spotted Cetus Guard 6551 | -6/Cetus | Allies destroyed Cetus Guard 6562 | -6/Cetus | Allies destroyed Cetus Guard 6562 | -6/Cetus | Allies destroyed Cetus Guard 6567 | -6/Cetus | Allies destroyed Cetus Guard 6571 | -6/Cetus | Discovered exit to Factory (range 21) 6577 | -6/Cetus | Met Revision 17 6638 | -6/Cetus | Entered Archives 6638 | -6/Archives | Accompanied by 5 allies 6672 | -6/Archives | Discovered new exit (range 22) 6701 | -6/Archives | Discovered exit to Factory (range 13) 6733 | -6/Archives | Discovered new exit (range 21) 6903 | -6/Archives | Entered Hub_04(d) 6903 | -6/Hub_04(d) | Accompanied by 4 allies 6968 | -6/Hub_04(d) | Unchained authorized (6S-H0T) 7047 | -6/Hub_04(d) | Network Hub disabled 7054 | -6/Hub_04(d) | Core integrity fell below 20% 7082 | -6/Hub_04(d) | Lost 3 parts (1n1u1w) 7084 | -6/Hub_04(d) | Network Hub disabled 7093 | -6/Hub_04(d) | Network Hub disabled 7097 | -6/Hub_04(d) | Lost 3 allies 7117 | -6/Hub_04(d) | Entered Factory 7117 | -5/Factory | Evolved 2 slots: Propulsion x1, Utility x1 7118 | -5/Factory | Identified exit to Upper Caves 7120 | -5/Factory | Loaded intel: 4 scanalyzer locations 7147 | -5/Factory | Lost 3 parts (1p1u1w) 7176 | -5/Factory | Discovered new exit (range 13) 7183 | -5/Factory | Unchained authorized (6S-H0T) 7213 | -5/Factory | Discovered new exit (range 7) 7238 | -5/Factory | Repaired Antigrav Array? 7245 | -5/Factory | Loaded intel: 8 recycling unit locations 7270 | -5/Factory | Fabricated Cesium-ion Thruster? 7309 | -5/Factory | Lost 11 parts (1p4n4u2w) 7374 | -5/Factory | Spotted B-75 Beast 7387 | -5/Factory | Fabricated Cesium-ion Thruster? 7417 | -5/Factory | Search patrols dispatched 7422 | -5/Factory | Learned Quarantine emergency access door positions 7469 | -5/Factory | Manually triggered Chute Trap 7469 | -5/Factory | Sucked down chute 7469 | -5/Factory | Entered Waste 7475 | -5/Waste | Spotted C-40 Crusher 7476 | -5/Waste | Spotted C-40 Crusher 7476 | -5/Waste | Spotted C-40 Crusher 7480 | -5/Waste | Spotted C-40 Crusher 7490 | -5/Waste | Spotted C-40 Crusher 7539 | -5/Waste | Spotted C-40 Crusher 7554 | -5/Waste | Found Fusion Bomb Launcher 7556 | -5/Waste | Warlord forces began an assault 7585 | -5/Waste | Allies destroyed C-40 Crusher 7591 | -5/Waste | Allies destroyed C-40 Crusher 7593 | -5/Waste | Allies destroyed C-40 Crusher 7596 | -5/Waste | Allies destroyed C-40 Crusher 7598 | -5/Waste | Allies destroyed C-40 Crusher 7603 | -5/Waste | Allies destroyed C-40 Crusher 7622 | -5/Waste | Discovered new exit (range 12) 7625 | -5/Waste | Identified exit to Factory 7627 | -5/Waste | Lost 3 parts (2n1u) 7629 | -5/Waste | Lost 3 allies 7701 | -5/Waste | Entered Factory 7701 | -5/Factory | Accompanied by 16 allies 7752 | -5/Factory | Lost 6 allies 7824 | -5/Factory | Discovered exit to Upper Caves (range 7) 7854 | -5/Factory | Central database locked down 7908 | -5/Factory | Loaded intel: 7 recycling unit locations 8107 | -5/Factory | Loaded intel: 69 trap records 8141 | -5/Factory | Repaired Nuclear Pulse Thruster 8164 | -5/Factory | Loaded intel: 5 fabricator locations 8168 | -5/Factory | Repaired Nuclear Pulse Thruster? 8199 | -5/Factory | Discovered new exit (range 4) 8200 | -5/Factory | Identified exit to Factory 8213 | -5/Factory | Learned location of 2 exits from Proximity Caves 8254 | -5/Factory | Learned Quarantine non-interactive machine intel 8285 | -5/Factory | Learned location of 1 exit from Testing 8324 | -5/Factory | Learned Testing interactive machine intel 8332 | -5/Factory | Build established: Hacker-Ninja 8367 | -5/Factory | Unchained authorized (GL-D0S) 8373 | -5/Factory | Learned Extension terminal intel 8375 | -5/Factory | Repaired Fusion Bomb Launcher 8430 | -5/Factory | Learned 4 Research zone layouts 8435 | -5/Factory | Entered Upper Caves 8436 | -5/Upper Caves | Identified exit to Upper Caves 8439 | -5/Upper Caves | Learned location of Warlord (-4) 8500 | -5/Upper Caves | Entered another Upper Caves area 8582 | -5/Upper Caves | Attracted the attention of an 0b10 checkpoint 8583 | -5/Upper Caves | Discovered new exit (range 8) 8585 | -5/Upper Caves | Identified exit to Zhirov 8585 | -5/Upper Caves | Entered Zhirov 8585 | -5/Zhirov | Discovered new exit (range 3) 8586 | -5/Zhirov | Identified exit to Proximity Caves 8591 | -5/Zhirov | Met Zhirov 8597 | -5/Zhirov | Learned location of Quarantine (-2) 8597 | -5/Zhirov | Learned location of Testing (-3) 8597 | -5/Zhirov | Learned location of Command (-1) 8599 | -5/Zhirov | Zhirov requested help retrieving the SGEMP Prototype 8603 | -5/Zhirov | Found Alien Artifact 8603 | -5/Zhirov | Identified Integrated Reactor 8603 | -5/Zhirov | Installed Integrated Reactor, increased core energy generation (+10) 8609 | -5/Zhirov | Found Alien Artifact 8657 | -5/Zhirov | Entered Proximity Caves 8671 | -4/Proximity Caves | Learned Research terminal intel 8716 | -4/Proximity Caves | Core integrity fell below 50% 8762 | -4/Proximity Caves | Entered Factory 8762 | -4/Factory | Evolved 2 slots: Propulsion x1, Utility x1 8808 | -4/Factory | Unchained authorized (GL-D0S) 8844 | -4/Factory | Identified Transdimensional Reconstructor 8872 | -4/Factory | Loaded intel: 8 recycling unit locations 9312 | -4/Factory | Identified exit to Upper Caves 9312 | -4/Factory | Identified exit to Armory 9329 | -4/Factory | Discovered new exit (range 17) 9388 | -4/Factory | Learned Quarantine stockpile data 9442 | -4/Factory | Learned Quarantine machine intel 9455 | -4/Factory | Learned location of 2 exits from Research 9456 | -4/Factory | Learned Armory emergency access door positions 9457 | -4/Factory | Identified exit to Research 9459 | -4/Factory | Learned 2 Upper Caves zone layouts 9460 | -4/Factory | Learned location of 1 exit from Research 9494 | -4/Factory | Learned location of 1 exit from Armory 9499 | -4/Factory | Fabricated Lgt. Quantum Reactor (x2) 9502 | -4/Factory | Repaired Field Propulsion Drive 9542 | -4/Factory | Repaired Cesium-ion Thruster+? 9619 | -4/Factory | Discovered exit to Research (range 6) 9683 | -4/Factory | Entered Armory 9785 | -4/Armory | Warped through subspace to slip node 9785 | -4/Armory | Discovered new exit (range 1) 9785 | -4/Armory | Identified exit to Lab 9795 | -4/Armory | Entered Lab 9795 | -4/Lab | Discovered exit to Research (range 9) 9799 | -4/Lab | Hidden lab's door opened automatically 9799 | -4/Lab | Sensor layout match revealed 9800 | -4/Lab | Gained access to the hidden lab's interior 9894 | -4/Lab | Found Med. Regenerative Plating 9896 | -4/Lab | Found Prototype Hackware 9907 | -4/Lab | Found Prototype Special Weapon 9907 | -4/Lab | Identified Gui. Remote Datajack 9913 | -4/Lab | Found Prototype Energy Gun 9913 | -4/Lab | Identified Hyp. EM Gauss Rifle 9916 | -4/Lab | Found Prototype Energy Cannon 9916 | -4/Lab | Identified Warp Cannon 9928 | -4/Lab | Found Alien Artifact 9928 | -4/Lab | Identified Core Regenerator 9928 | -4/Lab | Used Core Regenerator, restored core integrity (+95) 9935 | -4/Lab | Found Alien Artifact 9935 | -4/Lab | Identified Integrated Mediator 9935 | -4/Lab | Installed Integrated Mediator, increased core attachment efficiency 9942 | -4/Lab | Found Transdimensional Reconstructor 9954 | -4/Lab | Entered Research 9954 | -3/Research | Evolved 2 slots: Power x1, Utility x1 9955 | -3/Research | Identified exit to Research 9955 | -3/Research | Identified exit to Testing 9957 | -3/Research | Loaded intel: 22 terminal locations 9984 | -3/Research | Identified Deep Network Scanner 9992 | -3/Research | Loaded intel: 5 recycling unit locations 10063 | -3/Research | Central database locked down 10114 | -3/Research | Build established: Hacker-Scout 10136 | -3/Research | Spotted B-86 Titan 10145 | -3/Research | Discovered exit to Research (range 10) 10154 | -3/Research | Revision forces began assault on 0b10 10278 | -3/Research | Fabricated Exp. Signal Interpreter? 10381 | -3/Research | Repaired Nuclear Pulse Array+ 10498 | -3/Research | Learned Research security intel 10552 | -3/Research | Learned Quarantine garrison access intel 10553 | -3/Research | Fabricated Imp. Propulsion Shielding (x2) 10650 | -3/Research | Learned location of 1 exit from Armory 10654 | -3/Research | Research terminal network offline 10794 | -3/Research | Found Prototype Hackware 10794 | -3/Research | Identified Exp. System Shield 10834 | -3/Research | Spotted Striker 10849 | -3/Research | Spotted B-86 Titan 10854 | -3/Research | Entered Testing 10856 | -3/Testing | Loaded intel: 16 interactive machine locations 10861 | -3/Testing | Found Prototype Device 10861 | -3/Testing | Identified Exp. Shield Generator 10906 | -3/Testing | Found Prototype Launcher 10906 | -3/Testing | Identified Z-bomb Delivery System 10956 | -3/Testing | Found Prototype Energy Cannon 10956 | -3/Testing | Identified Hpw. Disruptor Cannon 10978 | -3/Testing | Found Prototype Energy Gun 10978 | -3/Testing | Identified Tachyon Dispersion Ray 11016 | -3/Testing | Spotted Striker 11016 | -3/Testing | Spotted Striker 11043 | -3/Testing | Central database locked down 11051 | -3/Testing | Found Prototype Energy Gun 11051 | -3/Testing | Identified Warp Gun 11190 | -3/Testing | Learned Quarantine emergency access door positions 11249 | -3/Testing | Learned 4 Research zone layouts 11265 | -3/Testing | Learned location of 1 exit from Armory 11288 | -3/Testing | Spotted PL-AGS4U76U1J 11290 | -3/Testing | Learned Research security intel 11301 | -3/Testing | Spotted PH-VMOIZ61N3B 11345 | -3/Testing | Entered Research 11345 | -2/Research | Evolved 2 slots: Utility x2 11346 | -2/Research | Identified exit to Quarantine 11385 | -2/Research | Spotted B-90 Cyclops 11404 | -2/Research | Unchained authorized (GL-D0S) 11637 | -2/Research | Found Prototype Launcher 11637 | -2/Research | Identified Enh. Gamma Bomb Array 11723 | -2/Research | Identified exit to Access 11766 | -2/Research | Learned 4 Research zone layouts 11813 | -2/Research | Learned location of 1 exit from Research 11823 | -2/Research | Entered Quarantine 11827 | -2/Quarantine | Loaded intel: 87 machine locations 11828 | -2/Quarantine | Loaded intel: 64 non-interactive machine locations 11829 | -2/Quarantine | Loaded intel: 1 garrison access location 11884 | -2/Quarantine | Found Alien Energy Cannon 11897 | -2/Quarantine | Found Alien Artifact 11900 | -2/Quarantine | Found Transdimensional Reconstructor 11909 | -2/Quarantine | Repaired Broken Nuclear Pulse Array+? 12064 | -2/Quarantine | Found Alien Artifact 12064 | -2/Quarantine | Identified Phase Redirector 12210 | -2/Quarantine | Cryocooling Duct disabled 12222 | -2/Quarantine | Cryocooling Duct disabled 12225 | -2/Quarantine | Ambient heat levels rising (+20) 12225 | -2/Quarantine | Non-combat units ordered to evacuate 12237 | -2/Quarantine | Ambient heat levels rising (+20) 12237 | -2/Quarantine | Combat units ordered to evacuate 12320 | -2/Quarantine | Learned Research trap positions 12337 | -2/Quarantine | Quarantine Guard activated 12366 | -2/Quarantine | Central database locked down 12422 | -2/Quarantine | Found Alien Artifact 12424 | -2/Quarantine | Identified Subatomic Replicator 12424 | -2/Quarantine | Used Subatomic Replicator to create Alien Artifact 12453 | -2/Quarantine | Spotted Fortress 12487 | -2/Quarantine | Spotted Quarantine Guard 12488 | -2/Quarantine | Spotted Quarantine Guard 12489 | -2/Quarantine | Spotted Quarantine Guard 12504 | -2/Quarantine | Learned Research trap positions 12547 | -2/Quarantine | Learned Research trap positions 12579 | -2/Quarantine | Spotted Quarantine Guard 12580 | -2/Quarantine | Learned Research terminal intel 12589 | -2/Quarantine | Destroyed Quarantine Guard 12602 | -2/Quarantine | Identified exit to Section 7 12602 | -2/Quarantine | Identified exit to Protoforge 12605 | -2/Quarantine | Destroyed Fortress 12611 | -2/Quarantine | Found Prototype Reactor 12611 | -2/Quarantine | Identified Vortex Chain Reactor 12619 | -2/Quarantine | Found Hvy. Insulated Plating 12633 | -2/Quarantine | Learned Research emergency access door positions 12637 | -2/Quarantine | Spotted Quarantine Guard 12675 | -2/Quarantine | Learned Section 7 terminal intel 12681 | -2/Quarantine | Destroyed Quarantine Guard 12706 | -2/Quarantine | Spotted Quarantine Guard 12725 | -2/Quarantine | Learned 4 Research zone layouts 12752 | -2/Quarantine | Destroyed Quarantine Guard 12792 | -2/Quarantine | Spotted Quarantine Guard 12819 | -2/Quarantine | Spotted Quarantine Guard 12832 | -2/Quarantine | Destroyed Quarantine Guard 12851 | -2/Quarantine | Destroyed Quarantine Guard 12865 | -2/Quarantine | Destroyed Alpha 7 12868 | -2/Quarantine | Found Prototype Ballistic Gun 12868 | -2/Quarantine | Identified Multirail 12872 | -2/Quarantine | Spotted Quarantine Guard 12891 | -2/Quarantine | Found Prototype Processor 12891 | -2/Quarantine | Identified Exp. Target Analyzer 12914 | -2/Quarantine | Met incapacitated Sigix Warrior 12914 | -2/Quarantine | Lockdown squad dispatched 12926 | -2/Quarantine | Spotted Lightning 12954 | -2/Quarantine | Spotted Quarantine Guard 12981 | -2/Quarantine | Destroyed Quarantine Guard 13014 | -2/Quarantine | Spotted Lightning 13043 | -2/Quarantine | Spotted Lightning 13064 | -2/Quarantine | Destroyed Lightning 13094 | -2/Quarantine | Destroyed Lightning 13113 | -2/Quarantine | Destroyed Lightning 13124 | -2/Quarantine | Found Exp. Phase Shifter 13130 | -2/Quarantine | Found Prototype Device 13130 | -2/Quarantine | Identified Exp. EM Shield 13133 | -2/Quarantine | Found Prototype Energy Cannon 13133 | -2/Quarantine | Identified EMDS 13209 | -2/Quarantine | Destroyed Quarantine Guard 13220 | -2/Quarantine | Spotted Quarantine Guard 13268 | -2/Quarantine | Destroyed Quarantine Guard 13278 | -2/Quarantine | Identified Dimensional Node Initializer 13278 | -2/Quarantine | Identified Supercharged TR 13278 | -2/Quarantine | Identified Core Cannon 13309 | -2/Quarantine | Found Dimensional Node Initializer 13309 | -2/Quarantine | Initialized slip node 13312 | -2/Quarantine | Found Transdimensional Reconstructor 13312 | -2/Quarantine | Warped through subspace to slip node 13314 | -2/Quarantine | Found Transdimensional Reconstructor 13314 | -2/Quarantine | Warped through subspace to slip node 13317 | -2/Quarantine | Found Transdimensional Reconstructor 13317 | -2/Quarantine | Warped through subspace to slip node 13368 | -2/Quarantine | Spotted Quarantine Guard 13389 | -2/Quarantine | Destroyed Quarantine Guard 13443 | -2/Quarantine | Destroyed Quarantine Guard 13696 | -2/Quarantine | Repaired Field Propulsion Array+ 13732 | -2/Quarantine | Found Dimensional Node Initializer 13740 | -2/Quarantine | Repaired Adv. Reaction Control System? 13744 | -2/Quarantine | Initialized slip node 14219 | -2/Quarantine | Build established: Hacker-Assassin 15416 | -2/Quarantine | Entered Protoforge 15432 | -2/Protoforge | Spotted B-90 Cyclops 15444 | -2/Protoforge | Superfortress began startup sequence 15493 | -2/Protoforge | Destroyed B-90 Cyclops 15606 | -2/Protoforge | Spotted Hotshot 15606 | -2/Protoforge | Spotted Hotshot 15686 | -2/Protoforge | Build established: Hacker-Scout 15788 | -2/Protoforge | Destroyed Hotshot 15806 | -2/Protoforge | Destroyed Hotshot 15822 | -2/Protoforge | Spotted Hotshot 15829 | -2/Protoforge | Spotted Hotshot 16005 | -2/Protoforge | Learned Research recycling unit intel 16052 | -2/Protoforge | Learned Research trap positions 16061 | -2/Protoforge | Repaired Q-thruster+ 16076 | -2/Protoforge | Spotted Overlord 16091 | -2/Protoforge | Learned 4 Research zone layouts 16104 | -2/Protoforge | Spotted AP7-3 16108 | -2/Protoforge | Spotted AP7-3 16119 | -2/Protoforge | Learned location of 1 exit from Research 16120 | -2/Protoforge | Destroyed AP7-3 16135 | -2/Protoforge | Destroyed AP7-3 16150 | -2/Protoforge | Repaired Exp. Utility Shielding? 16165 | -2/Protoforge | Learned 4 Access zone layouts 16200 | -2/Protoforge | Spotted Hotshot 16200 | -2/Protoforge | Spotted Hotshot 16214 | -2/Protoforge | Spotted EXE-6 16214 | -2/Protoforge | Spotted EXE-6 16224 | -2/Protoforge | UFD initiated attack on Protoforge 16224 | -2/Protoforge | Loaded intel: 3 recycling unit locations 16260 | -2/Protoforge | Optimus greeted in Protoforge 16265 | -2/Protoforge | Found Prototype Processor 16265 | -2/Protoforge | Identified Exp. Armor Integrity Analyzer 16267 | -2/Protoforge | Found Prototype Device 16267 | -2/Protoforge | Identified Exp. Kinecellerator 16271 | -2/Protoforge | Found Prototype Ballistic Gun 16271 | -2/Protoforge | Identified Cep. XC Strikerail 16271 | -2/Protoforge | Spotted Decapitator 16272 | -2/Protoforge | Spotted Decapitator 16274 | -2/Protoforge | Initialized slip node 16308 | -2/Protoforge | Warped through subspace to slip node 16312 | -2/Protoforge | Spotted Decapitator 16335 | -2/Protoforge | Spotted Immortal 16355 | -2/Protoforge | Met 7R-MNS 16358 | -2/Protoforge | Found Prototype Device 16358 | -2/Protoforge | Identified Cep. Antimissile System 16360 | -2/Protoforge | Found Prototype Energy Cannon 16360 | -2/Protoforge | Identified Cep. Plasma Driver 16362 | -2/Protoforge | Lost 4 parts (2n2u) 16389 | -2/Protoforge | Spotted EXE-6 16393 | -2/Protoforge | Lost 24 allies 16393 | -2/Protoforge | Destroyed EXE-6 16474 | -2/Protoforge | Found Prototype Device 16486 | -2/Protoforge | Destroyed Hotshot 16497 | -2/Protoforge | Spotted Immortal 16498 | -2/Protoforge | Spotted Immortal 16513 | -2/Protoforge | Destroyed Immortal 16533 | -2/Protoforge | Destroyed Immortal 16537 | -2/Protoforge | Found Prototype Device 16537 | -2/Protoforge | Identified Exp. Cloaking Device 16549 | -2/Protoforge | Spotted Decapitator 16549 | -2/Protoforge | Spotted Decapitator 16549 | -2/Protoforge | Spotted Decapitator 16549 | -2/Protoforge | Spotted Decapitator 16550 | -2/Protoforge | Destroyed Decapitator 16550 | -2/Protoforge | Destroyed Decapitator 16552 | -2/Protoforge | Destroyed Decapitator 16554 | -2/Protoforge | Destroyed Decapitator 16588 | -2/Protoforge | Spotted Hotshot 16604 | -2/Protoforge | Identified Crosscalibrator 16641 | -2/Protoforge | Found Cep. NT7 Matterbank 16647 | -2/Protoforge | Spotted Executioner 16662 | -2/Protoforge | Forge Plexus network access discovered 16681 | -2/Protoforge | Spotted Hotshot 16681 | -2/Protoforge | Spotted Hotshot 16699 | -2/Protoforge | Lost 4 allies 16701 | -2/Protoforge | Spotted Executioner 16725 | -2/Protoforge | Destroyed Executioner 16914 | -2/Protoforge | Spotted Decapitator 16914 | -2/Protoforge | Spotted Decapitator 16915 | -2/Protoforge | Destroyed Decapitator 16920 | -2/Protoforge | Spotted V483-v 16920 | -2/Protoforge | Spotted V548-b 16931 | -2/Protoforge | Found Cep. Arcsight Missile Launcher 16958 | -2/Protoforge | Spotted V508-j 16958 | -2/Protoforge | Spotted V294-x 16958 | -2/Protoforge | Spotted V151-s 16965 | -2/Protoforge | Found Cep. Zero-point Core 17109 | -2/Protoforge | Spotted Striker 17115 | -2/Protoforge | Spotted Striker 17115 | -2/Protoforge | Spotted Executioner 17162 | -2/Protoforge | Spotted Decapitator 17162 | -2/Protoforge | Spotted Decapitator 17162 | -2/Protoforge | Spotted Decapitator 17162 | -2/Protoforge | Spotted Decapitator 17162 | -2/Protoforge | Destroyed Decapitator 17164 | -2/Protoforge | Destroyed Decapitator 17164 | -2/Protoforge | Destroyed Decapitator 17169 | -2/Protoforge | Destroyed Decapitator 17203 | -2/Protoforge | Found Faulty Cep. RG22 Armor 17207 | -2/Protoforge | Found Faulty Cep. RG22 Armor 17235 | -2/Protoforge | Found Faulty Cep. Reaction Jets 17236 | -2/Protoforge | Found Faulty Cep. Reaction Jets 17484 | -2/Protoforge | Spotted Immortal 17484 | -2/Protoforge | Spotted Immortal 17485 | -2/Protoforge | Spotted V503-p 17538 | -2/Protoforge | Build established: Hacker-Ninja 17604 | -2/Protoforge | UFD reported confirmed Drillbomb installation 17605 | -2/Protoforge | Destroyed Immortal 17685 | -2/Protoforge | Destroyed Immortal 17716 | -2/Protoforge | Found Cep. Antigrav Storage Unit 17831 | -2/Protoforge | Additional patrols dispatched to research labs 17835 | -2/Protoforge | Found Cep. Nanofilaments [Tensile] 17835 | -2/Protoforge | Installed Cep. Nanofilaments [Tensile], 3 resistances modified: KI +20%, TH -10%, I +20% 17842 | -2/Protoforge | Found Transdimensional Reconstructor 17857 | -2/Protoforge | Spotted AP7-3 17863 | -2/Protoforge | Spotted AP7-3 17887 | -2/Protoforge | Destroyed AP7-3 17922 | -2/Protoforge | Destroyed AP7-3 17933 | -2/Protoforge | Found Prototype Energy Gun 17933 | -2/Protoforge | Identified Enh. Gamma Rifle 17943 | -2/Protoforge | Found Cep. Helical Railcannon 18040 | -2/Protoforge | Spotted V475-p 18138 | -2/Protoforge | Spotted Executioner 18139 | -2/Protoforge | Spotted Executioner 18213 | -2/Protoforge | Lost 6 allies 18238 | -2/Protoforge | Destroyed 7 combat bots 18296 | -2/Protoforge | Lost 4 allies 18296 | -2/Protoforge | Spotted Striker 18296 | -2/Protoforge | Spotted Striker 18297 | -2/Protoforge | Installed UFD Drillbomb at designated target 18297 | -2/Protoforge | UFD reported confirmed Drillbomb installation 18316 | -2/Protoforge | Spotted Executioner 18316 | -2/Protoforge | Spotted Executioner 18323 | -2/Protoforge | UFD reported confirmed Drillbomb installation 18357 | -2/Protoforge | Spotted Executioner 18366 | -2/Protoforge | Spotted 02F28-K 18373 | -2/Protoforge | Spotted Executioner 18373 | -2/Protoforge | Spotted Executioner 18374 | -2/Protoforge | Spotted Executioner 18394 | -2/Protoforge | Spotted Executioner 18394 | -2/Protoforge | Spotted Executioner 18427 | -2/Protoforge | Lost 9 allies 18460 | -2/Protoforge | Found Cep. Combat Aerolev Unit 18465 | -2/Protoforge | Found Faulty Cep. Gyrokinetic System 18467 | -2/Protoforge | Found Faulty Cep. Combat Aerolev Unit 18469 | -2/Protoforge | Found Faulty Cep. Gyrokinetic System 18479 | -2/Protoforge | Found Cep. Gyrokinetic System 18554 | -2/Protoforge | Build established: Scavenger-Ninja 18599 | -2/Protoforge | Attached CPS modules to V022-d. 18617 | -2/Protoforge | Found Cep. Weapon Articulator 18625 | -2/Protoforge | Found Exp. Kinecellerator 18631 | -2/Protoforge | Found Cep. Countertargeting System 18659 | -2/Protoforge | Spotted V716-c 18824 | -2/Protoforge | Spotted V798-z 18843 | -2/Protoforge | Attached CPS modules to V798-z. 18863 | -2/Protoforge | Destroyed V798-z 18869 | -2/Protoforge | Found Prototype Device 18869 | -2/Protoforge | Identified Exp. Shock Absorption System 18872 | -2/Protoforge | Found Prototype Device 18872 | -2/Protoforge | Identified Exp. Actuator Array 18910 | -2/Protoforge | Spotted V344-x 18959 | -2/Protoforge | Spotted Executioner 18959 | -2/Protoforge | Spotted Executioner 18984 | -2/Protoforge | Destroyed V344-x 19005 | -2/Protoforge | Destroyed 9 combat bots 19095 | -2/Protoforge | Found Cep. Deflector Sword 19097 | -2/Protoforge | Found Faulty Cep. Helical Railcannon 19116 | -2/Protoforge | Found Cld. Directed Potential Cannon 19118 | -2/Protoforge | Found Cep. Cloak Mesh 19120 | -2/Protoforge | Found Faulty Cep. Cloak Mesh 19123 | -2/Protoforge | Found Faulty Cep. Thermoelectric Network 19124 | -2/Protoforge | Found Faulty Cep. Thermoelectric Network 19176 | -2/Protoforge | Found Cep. Impact Drone Bay 19235 | -2/Protoforge | Spotted V303-t 19236 | -2/Protoforge | Spotted V949-i 19262 | -2/Protoforge | Found Exp. Active Sensor Suite 19397 | -2/Protoforge | Build established: Ninja 19403 | -2/Protoforge | Found Cep. Network Penetrator 19437 | -2/Protoforge | Spotted Executioner 19466 | -2/Protoforge | Spotted Executioner 19507 | -2/Protoforge | Spotted Executioner 19532 | -2/Protoforge | Destroyed Executioner 19569 | -2/Protoforge | Spotted Striker 19569 | -2/Protoforge | Spotted Striker 19573 | -2/Protoforge | Spotted Striker 19575 | -2/Protoforge | Destroyed Striker 19578 | -2/Protoforge | Destroyed Striker 19607 | -2/Protoforge | Spotted Striker 19607 | -2/Protoforge | Destroyed Striker 19607 | -2/Protoforge | Destroyed Striker 19608 | -2/Protoforge | Spotted Striker 19610 | -2/Protoforge | Spotted Striker 19623 | -2/Protoforge | P-80 Master assimilated allied E3-8QW(E) 19624 | -2/Protoforge | Destroyed Striker 19669 | -2/Protoforge | Spotted Executioner 19669 | -2/Protoforge | Destroyed Executioner 19682 | -2/Protoforge | Spotted Striker 19685 | -2/Protoforge | Destroyed Striker 19687 | -2/Protoforge | Spotted Executioner 19694 | -2/Protoforge | Destroyed Executioner 19710 | -2/Protoforge | Core integrity fell below 50% 19722 | -2/Protoforge | Lost 12 allies 19737 | -2/Protoforge | Spotted Striker 19737 | -2/Protoforge | Destroyed Striker 19767 | -2/Protoforge | Installed UFD Drillbomb at designated target 19767 | -2/Protoforge | UFD reported confirmed Drillbomb installation 19777 | -2/Protoforge | Destroyed 26 combat bots 19802 | -2/Protoforge | Spotted Striker 19808 | -2/Protoforge | Destroyed Striker 19809 | -2/Protoforge | Build established: Scout 19812 | -2/Protoforge | Spotted Striker 19821 | -2/Protoforge | Destroyed Striker 19845 | -2/Protoforge | Spotted Executioner 19846 | -2/Protoforge | Destroyed Executioner 19850 | -2/Protoforge | Spotted Executioner 19853 | -2/Protoforge | Spotted Executioner 19857 | -2/Protoforge | Destroyed Executioner 19868 | -2/Protoforge | Spotted Executioner 19871 | -2/Protoforge | Destroyed Executioner 19879 | -2/Protoforge | Destroyed Executioner 19890 | -2/Protoforge | Found Exp. Core Analyzer 19900 | -2/Protoforge | Destroyed 10 combat bots 19930 | -2/Protoforge | Spotted Executioner 19930 | -2/Protoforge | Spotted Executioner 19941 | -2/Protoforge | Destroyed Executioner 19947 | -2/Protoforge | Spotted Executioner 19947 | -2/Protoforge | Destroyed Executioner 19950 | -2/Protoforge | Destroyed Executioner 19951 | -2/Protoforge | Spotted Striker 19953 | -2/Protoforge | Destroyed Striker 19958 | -2/Protoforge | Spotted Executioner 19967 | -2/Protoforge | Spotted Executioner 19974 | -2/Protoforge | Destroyed 9 combat bots 19985 | -2/Protoforge | Spotted Executioner 19987 | -2/Protoforge | Spotted Executioner 19988 | -2/Protoforge | Destroyed Executioner 20026 | -2/Protoforge | Lost 18 allies 20116 | -2/Protoforge | Found Faulty Cep. Helical Railcannon 20127 | -2/Protoforge | Found Faulty Cep. Helical Railcannon 20169 | -2/Protoforge | Spotted Executioner 20221 | -2/Protoforge | Spotted Striker 20249 | -2/Protoforge | Spotted Executioner 20249 | -2/Protoforge | Spotted Striker 20250 | -2/Protoforge | Spotted Executioner 20251 | -2/Protoforge | Spotted Executioner 20283 | -2/Protoforge | Lost 8 allies 20328 | -2/Protoforge | Spotted Striker 20449 | -2/Protoforge | Entered Access 20449 | -1/Access | Evolved 2 slots: Power x1, Weapon x1 20699 | -1/Access | First assault squad dispatched 20709 | -1/Access | High security lockdown imminent 20789 | -1/Access | High security lockdown engaged 21027 | -1/Access | Destroyed 8 combat bots 21063 | -1/Access | Spotted Striker 21064 | -1/Access | Spotted Striker 21119 | -1/Access | Spotted Investigator 21120 | -1/Access | Scanned by Researcher 21197 | -1/Access | Found Prototype Launcher 21197 | -1/Access | Identified Containment Facilitator 21207 | -1/Access | Destroyed 14 combat bots 21212 | -1/Access | Lost 4 parts (1p1n2u) 21290 | -1/Access | Spotted Striker 21295 | -1/Access | Destroyed Striker 21304 | -1/Access | Spotted Striker 21314 | -1/Access | Spotted Executioner 21316 | -1/Access | Spotted Striker 21332 | -1/Access | Destroyed Striker 21345 | -1/Access | Spotted Striker 21345 | -1/Access | Spotted Striker 21346 | -1/Access | Spotted Striker 21369 | -1/Access | Destroyed Striker 21378 | -1/Access | Destroyed Striker 21398 | -1/Access | Destroyed Striker 21419 | -1/Access | Destroyed 31 combat bots 21419 | -1/Access | Lost 3 parts (1p1u1w) 21455 | -1/Access | Spotted Executioner 21456 | -1/Access | Spotted Executioner 21459 | -1/Access | Destroyed Executioner 21465 | -1/Access | Destroyed Executioner 21549 | -1/Access | Spotted Striker 21549 | -1/Access | Spotted Executioner 21555 | -1/Access | Destroyed Striker 21558 | -1/Access | Spotted Executioner 21561 | -1/Access | Destroyed Executioner 21567 | -1/Access | Destroyed Executioner 21593 | -1/Access | Spotted B-99 Colossus 21612 | -1/Access | Destroyed 8 combat bots 21619 | -1/Access | Found Prototype Launcher 21619 | -1/Access | Identified Ragnarok Missile Launcher 21637 | -1/Access | Destroyed B-99 Colossus 21657 | -1/Access | Spotted B-99 Colossus 21684 | -1/Access | Destroyed 7 combat bots 21702 | -1/Access | Lost 4 parts (1n1u2w) 21736 | -1/Access | Spotted B-99 Colossus 21736 | -1/Access | Spotted B-99 Colossus 21795 | -1/Access | Lost 4 parts (1p2n1u) 21806 | -1/Access | Discovered new exit (range 4) 21808 | -1/Access | Identified exit to Surface 21828 | -1/Access | Released all parts (16) 21828 | *** | Escaped! Last Messages --------------- 21828_ B-99 Colossus exits siege mode. 21828_ Released Hyb. Graviton Reactor. 21828_ Released Exp. Active Sensor Suite. 21828_ Released Exp. Optical Array. 21828_ Released Cep. Antigrav Storage Unit. 21828_ Released Exp. Core Analyzer. 21828_ Released Cep. Phasing Heat Sink. 21828_ Released Cep. Combat Aerolev Unit. 21828_ Released Cep. RG22 Armor. 21828_ Released Cep. Gyrokinetic System. 21828_ Released Graphene Brace. 21828_ Released Exp. Antimatter Reactor. 21828_ Released Cep. Thermoelectric Network. 21828_ Released Cep. RG22 Armor. 21828_ Released Exp. EM Shield. 21828_ Released Com. HERF Cannon. 21828_ Released Cep. Deflector Sword. [Achievement: Live, Flee, And Rebuild] 21828_ Acquired 7 matter. [Achievement: 75k Club] Map ----- +----------------------------------------------------+ | ???????????????####+### ####+############?????? | | ??????????????????????# # """""????????????? | | ??????????????????????# # ""??????????????? | | ??????????????????????# %%# ????????????????? | | ??????????????????????# " ??????????????????? | | ??????????????????????# " ????????????????????? | | ??????????????????????# #?????????????????????? | | ??????????????????????# #?????????????????????? | | ??????????????????????# #???Y?????????????????? | | ???????????????????#### ####??????????????????? | | ???????????????????# #??????????????????? | | ???????????????????# % #??????????????????? | | ???????????????????# #??????????????????? | | ???????????????????# #??????????????????? | | ???????????????????# B #??????????????????? | | ???????????????????# BB #??????????????????? | | ???????????????????# B #??????????????????? | | ???????????????????#"""""" ""#??????????????????? | | ?????????????????????????" "?????????????????????? | | ?????????????????????????" "?????????????????????? | | ???????????????????#"""""" """#??????????????????? | | ???????????????????# #??????????????????? | | ???????????????????# "" " #??????????????????? | | ??????????????????????" " #??????????????????? | | ??????????????????????" "%/"? #??????????????????? | | ??????????????????????" %@="??#??????????????????? | | ??????????????????????" % !"?????????????????????? | | ??????????????????????"""!*"?????????????????????? | | ???????????Y????????? *!!*=????????????????????? | | ???????????????????# !!!!! #??????????????????? | | ??????????????????#""""""""""""#???# ????????? | | ??????????????????##"" ##???# ????????? | | ???????????????????#"" #????# ????????? | | ???????????????????#"" #????# ????????? | | ???????????????????#T #????# ????????? | | ???????????????????#"" #????# ????????? | | ???????????????????#"" #????# ????????? | | ????????????????####"" ###########????????? | | ???????????????? k ????????? | | ???????????????? A ?s??????? | | ????????????????#########################????????? | | ????????????????##################### ????????? | | ???????????????? ## ## ????????? | | ???????????????? ## ## ????????? | | ???????????????? ## ## ????????? | | ???????????????? ## ## ????????? | | ???????????????? ## ## ????????? | | ????????????????####+#####+## ## ????????? | | ???????????????? # ## ????????? | | ???????????????? / ## ????????? | +----------------------------------------------------+ Best States ------------- Heat Dissipation 88 Energy Generation 79 Energy Capacity 2050 Matter Stores 300 Matter Capacity 300 Sight Range 23 Robot Scan Range 20 Terrain Scan Range 14 Terrain Scan Density 10 ECM Strength 1 Cloak Strength 9 Additional Mass Support 20 Base Temperature (-) 200 EM Shielding 4 Corruption Containment 8 Corruption Block 20 Armor Coverage 600 Resistance: KI 20 Resistance: EX 75 Resistance: EM 75 Resistance: I 20 Propulsion Shielding 90 Utility Shielding 90 Point Defense Rating 480 Projectile Deflection 15 Melee Speed Boost 40 Phase Shifting 20 Evasion (%) 96 Targeting Accuracy 30 Target Analysis 10 Core Analysis 8 Recoil Reduction 1 Kinecelleration 66 Offensive Hacking 53 Defensive Hacking 14 Authchip Count 3 Item Schematics ----------------- Flight Unit | -9/Materials | Scanalyzed Imp. Assault Rifle | -9/Materials | Scanalyzed Beam Rifle | -9/Materials | Extracted Weight Redist. System | -9/Materials | Extracted ECM Suite | -9/Materials | Scanalyzed Cesium-ion Thruster | -8/Storage | Hacked Hyp. Gauss Rifle | -8/Recycling | Hacked Machine Analyzer | -8/Recycling | Hacked Nuclear Core | -8/Recycling | Hacked Imp. Propulsion Shielding | -6/Factory | Scanalyzed Cld. Plasma Cannon | -6/Factory | Scanalyzed CPS Tube | -6/Factory | Scanalyzed Coil Gun | -6/Factory | Extracted Imp. System Restoration Module | -6/Factory | Scanalyzed Adv. Gravity Neutralizer | -5/Factory | Scanalyzed Field Propulsion Drive | -5/Factory | Hacked Stasis Canceller | -5/Factory | Scanalyzed Mic. Antimatter Reactor | -5/Factory | Hacked Adv. Power Amplifier | -5/Factory | Hacked Fusion Bomb Launcher | -5/Factory | Scanalyzed Assault Drone Bay | -5/Zhirov | Free Exp. Heat Sink | -5/Zhirov | Free Exp. Optical Array | -5/Zhirov | Free Imp. Arc Thrower | -5/Zhirov | Free Graphene Brace | -4/Factory | Scanalyzed Exp. Utility Shielding | -4/Factory | Scanalyzed Lgt. Angular Momentum Engine | -4/Factory | Scanalyzed Com. HERF Cannon | -4/Factory | Hacked Lgt. Quantum Reactor | -3/Research | Scanalyzed Exp. Signal Interpreter | -3/Research | Hacked Q-thruster | -3/Research | Hacked Enh. Quantum Rifle | -3/Research | Hacked Cmb. Antigrav System | -3/Research | Hacked Plasma Lance | -3/Testing | Archive Exp. Hacking Suite | -3/Testing | Archive Electron Diverter | -3/Testing | Scanalyzed Lrn. Phase Cannon | -3/Testing | Archive Enh. Armored Medium Treads | -3/Testing | Archive Hds. Centrium Wheel | -3/Testing | Archive Lrn. Sensor Array | -3/Testing | Hacked Cld. Q-thruster | -3/Testing | Hacked Adv. Point Defense System | -3/Testing | Hacked Impulse Thruster Array | -3/Testing | Hacked Imp. Energy Well | -3/Testing | Archive Ionic Axe | -3/Testing | Archive Hvy. Hardcell Cannon | -2/Quarantine | Archive Com. Particle Reactor | -2/Quarantine | Archive Exp. EM Disruption Field | -2/Quarantine | Archive Exp. Cooling System | -2/Quarantine | Archive Exp. Shield Generator | -2/Quarantine | Archive Adv. Plasma Rifle | -2/Quarantine | Archive Gui. Micro-nuke Launcher | -2/Quarantine | Archive Exp. Focal Shield | -2/Quarantine | Hacked Centrium Light Armor Plating | -2/Quarantine | Archive Adv. Micro-nuke Launcher | -2/Quarantine | Archive Cld. Antigrav System | -2/Quarantine | Archive Adv. Heavy Siege Treads | -2/Quarantine | Hacked Hvy. Shield Leg | -2/Quarantine | Hacked Antimatter Reactor | -2/Quarantine | Extracted Linear Accelerator | -2/Quarantine | Extracted Arm. Huge Wheel | -2/Quarantine | Extracted Reaction Control System | -2/Quarantine | Extracted Great Maul | -2/Quarantine | Extracted Adv. Force Field | -2/Quarantine | Extracted Imp. System Shield | -2/Quarantine | Extracted Lgt. Antimatter Reactor | -2/Quarantine | Extracted Centrium Wheel | -2/Quarantine | Extracted Hardcell Cannon | -2/Quarantine | Extracted Adv. ECM Suite | -2/Quarantine | Extracted Adv. Thermal Shield | -2/Quarantine | Extracted Lyr. Light Armor Plating | -2/Quarantine | Extracted Imp. Thunder Leg | -2/Quarantine | Extracted Adv. Datajack | -2/Quarantine | Extracted Imp. Recalibrator | -2/Quarantine | Extracted Enh. Force Lance | -2/Quarantine | Extracted Adv. Cloaking Device | -2/Protoforge | Hacked Prc. Matter Filter | -2/Protoforge | Archive Exp. EM Shield | -2/Protoforge | Archive Proton Burst Cannon | -2/Protoforge | Archive Hvy. Proton Cannon | -2/Protoforge | Archive Exp. Coolant Injector | -2/Protoforge | Archive Com. Linear Accelerator | -2/Protoforge | Archive Exp. Thermal Shield | -2/Protoforge | Archive Exp. Power Amplifier | -2/Protoforge | Archive Imp. Q-thruster | -2/Protoforge | Archive Spectral Analyzer | -2/Protoforge | Archive Imp. Matter Neutralizer | -2/Protoforge | Archive Exp. ECM Suite | -2/Protoforge | Archive Robot Schematics ------------------ M-28 Smith | -8/Recycling | Hacked M-36 Artificer | -3/Research | Hacked B-60 Warrior | -3/Testing | Archive O-32 Director | -3/Testing | Archive A-27 Freighter | -3/Testing | Archive A-02 Transporter | -2/Quarantine | Archive H-77 Assassin | -2/Quarantine | Archive S-43 Plague | -2/Quarantine | Archive D-83 Annihilator | -2/Quarantine | Archive M-30 Cleanser | -2/Quarantine | Archive R-06 Scavenger | -2/Quarantine | Archive T-07 Excavator | -2/Protoforge | Archive C-65 Expert | -2/Protoforge | Archive A-15 Conveyor | -2/Protoforge | Archive Fabricated ------------ M-28 Smith | x1 | -6/Factory M-28 Smith | x1 | -6/Factory Cesium-ion Thruster | x2 | -5/Factory | Authchip Cesium-ion Thruster | x2 | -5/Factory | Authchip Lgt. Quantum Reactor | x2 | -4/Factory | Preloaded Exp. Signal Interpreter | x1 | -3/Research | Authchip Imp. Propulsion Shielding | x2 | -3/Research Repaired ---------- Flight Unit | 25% | -10/Materials Grenade Launcher | 38% | -10/Materials Flight Unit | 30% | -10/Materials Imp. Propulsion Shielding | 8% | -8/Storage Grenade Launcher | 30% | -8/Storage Enh. Autogun | 68% | -8/Storage Cesium-ion Thruster | 28% | -6/Factory Imp. Flight Unit | 20% | -6/Factory Imp. Propulsion Shielding | 36% | -6/Factory Antigrav Array | 12% | -5/Factory Nuclear Pulse Thruster | 10% | -5/Factory Nuclear Pulse Thruster | 16% | -5/Factory Fusion Bomb Launcher | 21% | -5/Factory Field Propulsion Drive | 13% | -4/Factory Cesium-ion Thruster | 24% | -4/Factory Nuclear Pulse Array | 56% | -3/Research Nuclear Pulse Array | 30% | -2/Quarantine | Broken Field Propulsion Array | 67% | -2/Quarantine Adv. Reaction Control System | 16% | -2/Quarantine Q-thruster | 35% | -2/Protoforge Exp. Utility Shielding | 62% | -2/Protoforge Studied --------- Flight Unit | -8/Materials | Hacked Cesium-ion Thruster | -6/Factory | Hacked Hvy. Pick | -6/Factory | Hacked Fission Core | -6/Factory | Hacked Mic. Nuclear Core | -6/Factory | Hacked Lgt. Fission Core | -6/Factory | Hacked Field Propulsion Array | -4/Factory | Hacked Lgt. Antimatter Reactor | -4/Factory | Hacked Nuclear Pulse Array | -3/Research | Hacked Lgt. Quantum Reactor | -3/Research | Hacked Nuclear Pulse Thruster | -3/Research | Hacked Fusion Bomb Launcher | -3/Research | Hacked Q-thruster | -3/Testing | Hacked Alien Tech Used ----------------- Integrated Reactor Transdimensional Reconstructor Core Regenerator Integrated Mediator Phase Redirector Subatomic Replicator Dimensional Node Initializer Core Cannon Supercharged TR Concept Nanofilaments [Tensile] Achievements -------------- 75k Club Anti-science Crusade Cool Guys DIY Cooler Equal Opportunity Bot Frienemies Hot Stuff IP Theft Live, Flee, And Rebuild Physics Protects Ponder That! Professional Mechanic Well-fed Force Field Challenges ------------ None Game ------ Seed SiegeFactoryWarhead Manual? 0 Play Time 10:21:21 Cumulative 538.7 hours Start 2025.10.16 @ 11:34:53 End 2025.10.18 @ 14:35:11 Sessions 7 Manual Loads 0 Difficulty Rogue Special Mode None Game No. 228 Rogue 228 Adventurer 0 Explorer 0 Win Type 0 Total 37 Types 16/2/6/2/5/1/0/2/0/3 Lore% 95 Gallery% 87 Achievement% 62 Wizard Run 0 Options --------- Layout 1 ASCII 0 Keyboard 0 Movement Numpad Keybinds 0 Fullscreen 1 Font 24/Smallcaps Map View 50x35 Zoom Use 0% Tactical HUD 1 Map Filters NONE Filters NONE Steam 1 RUN: 467760db-960a-4e7a-82dd-e7f24a6e8701